Cogmind - Beta 13 X1 @@@ ROGUE MODE // 2023.08.05 @ 02:17:46 Player: MTF Result: Destroyed by Architect with Modified Sigix Sheargun Performance ------------- Evolutions (9) 4500 Regions Visited (34) 6800 Robots Destroyed (780) 3900 Value Destroyed (46435) 46435 Prototype IDs (287) 5740 Alien Tech Used (11) 2200 Bonus (59099) 59099 TOTAL SCORE: 128674 Bonus ------- Triggered High Security 1000 High Alert Combat Kills 30038 Follower Combat Kills 6112 Entered Garrisons 800 Used RIF Installer 2000 Network Hubs Disabled 400 Met Imprinter 300 MAIN.C Attacked Warlord 500 Met R17 at Cetus 500 Scanned by Researcher 500 Destroyed MAIN.C Guards 500 Met MAIN.C 5000 Destroyed MAIN.C Shell 5000 Destroyed MAIN.C 10000 Met Architect 300 Destroyed A8 300 Destroyed A6 400 Friendly Fire -4551 Cogmind --------- Core Integrity 0/1600 Matter 294/300 Energy 409/740 System Corruption 2% Temperature Warm (165) Movement Core (400) Ox7 Location -1/Access_0 Parts ------- > --- POWER (5) -------- Quantum Reactor Zero-point Reactor > --- PROPULSION (3) --- (None) > --- UTILITY (14) ----- High-capacity Storage Unit Quantum Shading Machine Experimental Targeting Computer Experimental Targeting Computer Experimental Targeting Computer Experimental Targeting Computer Experimental Core Analyzer Experimental Armor Integrity Analyzer Experimental Weapon Cycler Heavy Regenerative Plating Heavy Regenerative Plating > --- WEAPON (4) ------- Enhanced Nova Cannon Enhanced Nova Cannon Potential Cannon > --- INVENTORY (24) --- Advanced Cooling System Experimental Energy Well (541) Experimental Matter Compressor (500) Quantum Shading Machine Long-range Terrain Scanner Experimental Core Analyzer Advanced Weapon Cycler Experimental Phase Shifter Experimental Force Field AEGIS Remote Shield Long-range Tractor Beam Enhanced Nova Cannon Enhanced Nova Cannon Peak State ------------ > --- POWER ------------ Zero-point Reactor Vortex Chain Reactor Vortex Chain Reactor > --- PROPULSION ------- Centrium Wheel Centrium Wheel Centrium Wheel > --- UTILITY ---------- Huge Storage Unit Experimental Targeting Computer Experimental Core Analyzer Experimental Core Analyzer Experimental Armor Integrity Analyzer Advanced Kinecellerator Experimental Weapon Cycler Experimental Phase Shifter Improved Utility Shielding Heavy Regenerative Plating Heavy Regenerative Plating AEGIS Remote Shield > --- WEAPON ----------- Multirail Multirail Core Stripper > --- INVENTORY -------- Zero-point Reactor Experimental Energy Well Experimental Energy Well Experimental Matter Compressor Experimental Core Analyzer Advanced Kinecellerator Advanced Weapon Cycler Advanced Transmission Jammer Experimental Force Field Experimental System Purifier Long-range Tractor Beam High-powered Transdimensional Reconstructor Compact HERF Cannon Enhanced Nova Cannon Enhanced Nova Cannon Enhanced Nova Cannon Enhanced Nova Cannon Enhanced Nova Cannon Potential Cannon Multirail Multirail Perforator Ragnarok Missile Launcher [Rating: 260] Favorites ----------- Power Quantum Reactor Engine Improved Ion Engine Power Core Micro Nuclear Core Reactor Quantum Reactor Propulsion Centrium Wheel Treads Armored Treads Leg Aluminum Leg Wheel Centrium Wheel Utility Experimental Targeting Computer Device Advanced Transmission Jammer Storage Huge Storage Unit Processor Experimental Targeting Computer Hackware Relay Coupler [NC] Protection Heavy Regenerative Plating Artifact Phase Armor Weapon Enhanced Nova Cannon Energy Gun Heavy EM Pulse Gun Energy Cannon Enhanced Nova Cannon Ballistic Gun Improved Assault Rifle Ballistic Cannon Perforator Launcher Rocket Launcher Special Weapon Advanced Remote Datajack Impact Weapon Core Stripper Slashing Weapon Scythe Piercing Weapon Plasma Lance Special Melee Weapon Advanced Datajack Build | -11 -10 -10 -9 -9 -7 -6 -6 -6 -6 -6 -6 -5 -5 -5 -5 -4 -4 -4 -4 -4 -4 -4 -4 -3 -3 -3 -2 -2 -2 -1 -1 -1 -1 -1 ------- Run | Jun Mat Min Mat Min Zio Pro Fac Ext Cet Arc Hub Fac Gar Fac Gar Fac Was Fac Gar Fac Upp Upp War Pro Res Qua Res Tes Sec Acc Gar Acc Com Ac0 Slots Evolved 18 | . . . 2 . . . 6 . . . . 2 . . . 2 . . . . . . . . 2 . 2 . . 2 . . . . Power 4 | . . . . . . . 1 . . . . . . . . . . . . . . . . . 1 . 1 . . 1 . . . . Propulsion 1 | . . . 1 . . . . . . . . . . . . . . . . . . . . . . . . . . . . . . . Utility 12 | . . . 1 . . . 5 . . . . 2 . . . 2 . . . . . . . . 1 . 1 . . . . . . . Weapon 1 | . . . . . . . . . . . . . . . . . . . . . . . . . . . . . . 1 . . . . Parts Attached 1137 | 3 11 3 18 . 10 11 50 34 20 17 46 4 21 41 22 15 20 11 30 46 5 9 2 19 47 24 11 76 65 8 46 148 210 34 Power 89 | . 3 . 2 . 2 . 3 4 2 1 4 . 3 4 1 . 3 . 2 2 . . . 1 1 2 2 4 1 4 7 15 13 3 Engine 12 | . 3 . 1 . 1 . 2 2 . . 2 . . . 1 . . . . . . . . . . . . . . . . . . . Core 12 | . . . 1 . 1 . 1 2 1 1 1 . 1 2 . . . . . . . . . 1 . . . . . . . . . . Reactor 65 | . . . . . . . . . 1 . 1 . 2 2 . . 3 . 2 2 . . . . 1 2 2 4 1 4 7 15 13 3 Propulsion 93 | 2 2 . 5 . 1 . 4 3 2 . 5 1 4 3 1 3 . 1 1 3 . . . 1 5 . . 4 . . 1 10 21 10 Treads 44 | 2 . . 5 . 1 . 4 3 2 . 5 1 4 3 1 . . . . . . . . . . . . . . . . 3 6 4 Leg 3 | . 2 . . . . . . . . . . . . . . . . . . . . . . . . . . . . . . . . 1 Wheel 46 | . . . . . . . . . . . . . . . . 3 . 1 1 3 . . . 1 5 . . 4 . . 1 7 15 5 Hover . | . . . . . . . . . . . . . . . . . . . . . . . . . . . . . . . . . . . Flight . | . . . . . . . . . . . . . . . . . . . . . . . . . . . . . . . . . . . Utility 607 | 1 . 1 6 . 3 6 27 11 8 14 22 3 5 24 11 6 16 6 13 26 4 6 1 14 27 8 8 37 47 1 27 91 120 7 Device 414 | 1 . . . . 2 6 15 9 3 9 15 1 3 19 4 5 11 3 7 18 4 6 1 11 24 6 4 24 33 1 7 70 87 5 Storage 21 | . . 1 1 . . . 2 . . . . . 1 . . . . 1 . . . . . . . . 2 3 1 . . 4 5 . Processor 23 | . . . . . . . 1 . . . 2 1 . 1 . . . . 1 . . . . 1 . . . 1 1 . 2 3 7 2 Hackware 42 | . . . . . . . 2 . . 3 . . . 2 3 1 . 1 3 5 . . . 1 1 1 . 2 . . 9 1 7 . Protection 106 | . . . 5 . 1 . 7 2 5 2 5 1 1 2 4 . 5 1 2 3 . . . 1 2 . 2 7 12 . 9 13 14 . Artifact 1 | . . . . . . . . . . . . . . . . . . . . . . . . . . 1 . . . . . . . . Weapon 348 | . 6 2 5 . 4 5 16 16 8 2 15 . 9 10 9 6 1 4 14 15 1 3 1 3 14 14 1 31 17 3 11 32 56 14 Energy Gun 10 | . 5 2 . . 1 . 1 . . . . . . . . . . . . . . . . . . . . 1 . . . . . . Energy Cannon 191 | . . . . . . . . 7 3 . 5 . 5 5 6 3 1 2 10 8 . 3 1 3 9 9 . 21 8 1 8 22 37 14 Ballistic Gun 37 | . . . 3 . 2 2 9 . 3 . 7 . . 1 . . . . . . . . . . . . . . . . . . 10 . Ballistic Cannon 16 | . . . . . . . 1 . . . . . . . . . . . . . . . . . . . . 2 4 . . 7 2 . Launcher 19 | . 1 . 2 . 1 3 1 6 2 . . . 1 . . . . . . . . . . . . . . . . . . 1 1 . Special Weapon 35 | . . . . . . . 1 1 . . . . . 1 2 3 . 1 1 5 . . . . 2 2 . 3 4 2 3 1 3 . Impact Weapon 10 | . . . . . . . 1 . . . . . 3 . . . . . . . . . . . . . . 2 1 . . . 3 . Slashing Weapon 8 | . . . . . . . 2 2 . 2 2 . . . . . . . . . . . . . . . . . . . . . . . Piercing Weapon 1 | . . . . . . . . . . . . . . . . . . . . . . . . . . . . . . . . 1 . . Special Melee Weapon 21 | . . . . . . . . . . . 1 . . 3 1 . . 1 3 2 1 . . . 3 3 1 2 . . . . . . Unidentified Prototypes 54 | . . . 1 . 1 . 3 . 3 . 1 . . 1 . . . . 4 . . . . . . 3 . 18 7 . . 6 6 . Corrupted Parts 19 | . . . . . . . . 3 5 . 4 . . . 1 . . . 4 . . . . . . . . 1 . . . . 1 . System Corruption 102 | . . . . . . . . 12 26 . 16 . . . 6 . . . 22 . . . . . . . . 9 . . . . 11 . Parts Lost 84 | . 4 2 . . . . 9 1 7 . 8 . . 5 5 . . . 3 4 . . . . . . . 1 2 . 6 4 5 18 Power 9 | . 1 . . . . . . . 1 . 1 . . . . . . . . . . . . . . . . 1 . . . 1 . 4 Propulsion 14 | . 1 . . . . . 2 . 1 . 1 . . . 1 . . . 1 . . . . . . . . . . . . . . 7 Utility 46 | . 1 . . . . . 6 1 3 . 5 . . 5 3 . . . 2 2 . . . . . . . . 1 . 6 2 5 4 Weapon 15 | . 1 2 . . . . 1 . 2 . 1 . . . 1 . . . . 2 . . . . . . . . 1 . . 1 . 3 Highest Loss Streak 6 | . 4 2 . . . . 3 1 5 . 2 . . 3 4 . . . 2 2 . . . . . . . 1 2 . 2 2 2 6 To Critical Strikes 4 | . . . . . . . . 1 . . . . . . . . . . . . . . . . . . . . . . . . . 3 Average Slot Usage (%) 88 | . 92 85 97 100 100 100 95 99 94 91 85 82 87 88 92 98 92 84 83 80 84 84 83 83 86 89 89 89 72 71 88 88 84 81 Engine 1 | . 13 14 11 11 5 . 6 2 5 . 4 5 2 . . 5 3 . . . . . . . . . . . . . . . . . Core 2 | . . . . . 5 11 6 9 4 11 5 . 2 3 10 5 2 . . . . . . 3 4 1 . . . . . . . . Reactor 9 | . . . . . . . . . 2 1 2 . 4 6 . . 4 10 10 10 10 10 10 6 7 11 16 16 8 11 15 18 14 10 Treads 6 | . 17 . 32 33 33 33 20 20 14 13 12 11 11 11 10 2 . . . . . . . . . . . . . . . . . . Wheel 7 | . . . . . . . . . . . . . . . . 11 15 15 15 11 10 10 10 10 12 14 13 12 12 11 10 10 9 9 Device 15 | . 8 . . . 6 11 15 22 23 7 10 12 11 14 12 15 18 19 13 16 21 21 21 19 21 24 24 23 22 19 13 16 16 13 Storage 5 | . 14 15 11 11 11 11 9 6 6 6 6 5 5 5 5 5 5 5 5 5 5 5 5 5 4 4 4 4 4 3 3 4 3 3 Processor 8 | . . . . . . . 1 6 6 6 5 15 17 12 11 10 10 10 10 10 10 10 10 10 9 9 8 8 6 7 12 7 11 19 Hackware 5 | . . . . . . . 5 5 . 14 10 5 5 11 16 20 10 6 7 9 10 10 10 11 10 7 8 7 4 3 4 2 . . Protection 9 | . . . 21 22 15 11 14 9 16 14 10 11 10 5 9 10 10 5 8 6 5 5 5 5 4 . 1 2 7 3 9 10 10 7 Energy Cannon 7 | . . . . . . . . 5 3 . 3 11 9 10 10 9 10 9 9 7 5 5 4 5 6 8 7 6 4 4 14 13 9 13 Ballistic Gun 3 | . 20 . 7 22 21 20 9 . 5 6 8 . . . . . . . . . . . . . . . . . . . . . 2 . Naked Turns . | . . . . . . . . . . . . . . . . . . . . . . . . . . . . . . . . . . . Heaviest Build 338 | 12 19 19 70 67 67 64 92 91 110 101 117 90 123 123 105 108 149 203 213 209 157 156 156 158 183 208 239 252 239 244 285 318 338 241 Greatest Support 110 | 40 40 20 60 60 60 60 63 70 110 110 110 100 103 108 103 98 30 36 38 44 44 44 44 44 48 48 48 48 48 48 48 48 80 68 Greatest Overweight (x) 85 | . 1 . 1 1 1 1 1 1 2 27 1 . 1 1 1 10 4 5 5 5 3 3 3 3 4 4 4 7 4 5 8 9 85 6 Average Overweight (x) 3 | . . . . 1 . . 1 1 . 5 . . . . . 2 3 4 4 4 3 3 3 3 3 3 4 4 4 4 5 5 6 3 Largest Inventory Capacity 29 | 8 8 8 20 20 20 20 20 20 20 20 20 20 20 20 20 20 20 25 25 25 25 25 25 25 25 25 25 25 29 29 29 29 29 24 Average Capacity 24 | 8 8 8 12 20 20 20 20 20 20 20 20 20 20 20 20 20 20 23 25 25 25 25 25 25 25 25 25 25 26 29 29 29 28 24 Most Carried 29 | 5 8 8 19 20 20 20 20 20 20 20 20 20 20 20 20 20 20 25 25 25 25 25 25 25 25 25 25 25 29 29 29 29 29 24 Average Carried 23 | 4 4 7 10 19 19 19 19 19 18 19 19 19 19 19 19 18 19 22 24 24 25 25 25 24 24 24 24 24 25 27 28 28 26 20 Final Capacity 29 | 8 8 8 20 20 20 20 20 20 20 20 20 20 20 20 20 20 20 25 25 25 25 25 25 25 25 25 25 25 29 29 29 29 24 24 Final Carried 29 | 4 8 7 19 20 20 20 20 20 20 20 20 20 20 20 20 20 20 25 25 25 25 25 25 25 25 25 25 25 29 29 29 29 24 13 Class Distribution -------------------- 32% | Bothacker-Mutant 13% | Scavenger-Mutant 11% | Mutant 11% | Generator-Mutant 9% | Bothacker-Gunner 8% | Generator-Gunner 5% | Botlord-Tank Dominant Class ---------------- Mutant | -10/Materials Mutant | -10/Mines Mutant | -9/Materials Mutant | -9/Mines Mutant | -7/Zion Mutant | -6/Proximity Caves Scavenger-Mutant | -6/Factory Scavenger-Mutant | -6/Extension Scavenger-Mutant | -6/Cetus Scavenger-Mutant | -6/Archives Scavenger-Mutant | -6/Hub_04(d) Scavenger-Mutant | -5/Factory Scavenger-Mutant | -5/Garrison Bothacker-Mutant | -5/Factory Bothacker-Mutant | -5/Garrison Bothacker-Mutant | -4/Factory Bothacker-Mutant | -4/Waste Bothacker-Mutant | -4/Factory Bothacker-Mutant | -4/Garrison Bothacker-Mutant | -4/Factory Bothacker-Mutant | -4/Upper Caves Bothacker-Mutant | -4/Upper Caves Bothacker-Mutant | -4/Warlord Bothacker-Mutant | -3/Proximity Caves Bothacker-Mutant | -3/Research Bothacker-Mutant | -3/Quarantine Bothacker-Mutant | -2/Research Bothacker-Mutant | -2/Testing Generator-Mutant | -2/Section 7 Generator-Mutant | -1/Access Botlord-Gunner | -1/Garrison Botlord-Tank | -1/Access Generator-Gunner | -1/Command Generator-Gunner | -1/Access_0 Resources | -11 -10 -10 -9 -9 -7 -6 -6 -6 -6 -6 -6 -5 -5 -5 -5 -4 -4 -4 -4 -4 -4 -4 -4 -3 -3 -3 -2 -2 -2 -1 -1 -1 -1 -1 ----------- Run | Jun Mat Min Mat Min Zio Pro Fac Ext Cet Arc Hub Fac Gar Fac Gar Fac Was Fac Gar Fac Upp Upp War Pro Res Qua Res Tes Sec Acc Gar Acc Com Ac0 Matter Collected 26958 | 242 240 45 416 78 172 262 1353 864 534 455 1398 18 338 493 434 178 240 117 294 705 99 180 . 227 337 407 110 972 1700 . 604 7010 6131 305 Remotely 8892 | . . . . . . . . . . . . . . . . . . . . . . . . . . . . 220 188 . 244 4790 3450 . Salvage Created 57404 | 100 592 106 607 78 42 144 1346 733 734 635 1707 18 1153 2048 1121 218 650 193 897 1655 85 210 30 211 694 986 17 1366 2015 . 3593 14735 17310 1375 Parts 1756 | 6 26 1 34 1 3 9 73 41 29 45 102 3 50 71 51 8 11 6 33 48 1 7 . 11 21 43 1 54 113 . 150 283 371 50 Haulers Intercepted 8 | . . . 2 . . . . . . . 1 . . 3 . . . . . . . . . . . . . 1 1 . . . . . Recyclers Shooed 17 | 1 3 . 1 . . . 6 2 . . . . . 1 . 1 . . . . . . . . 1 . . . . . . . 1 . Parts Field Recycled . | . . . . . . . . . . . . . . . . . . . . . . . . . . . . . . . . . . . Retrieved Matter . | . . . . . . . . . . . . . . . . . . . . . . . . . . . . . . . . . . . Parts Self-Destructed 34 | . . . . . . 9 . . . . . . . . . . . . . . . 15 . 10 . . . . . . . . . . Prevented 21 | . . . . . . . . . . . . . . . . . . . . . 7 9 . 5 . . . . . . . . . . Kills | -11 -10 -10 -9 -9 -7 -6 -6 -6 -6 -6 -6 -5 -5 -5 -5 -4 -4 -4 -4 -4 -4 -4 -4 -3 -3 -3 -2 -2 -2 -1 -1 -1 -1 -1 ------- Run | Jun Mat Min Mat Min Zio Pro Fac Ext Cet Arc Hub Fac Gar Fac Gar Fac Was Fac Gar Fac Upp Upp War Pro Res Qua Res Tes Sec Acc Gar Acc Com Ac0 Combat Hostiles Destroyed 669 | . 8 3 8 . . 8 16 16 15 4 26 . 19 20 16 1 1 2 16 23 1 4 . 5 3 11 . 14 23 . 53 159 174 20 Melee 4 | . . . . . . . 1 . . . . . . . . . . . . . . . . . . 1 . . . . . . 2 . Guns 61 | . 7 2 5 . . 4 11 . 4 4 24 . . . . . . . . . . . . . . . . . . . . . . . Cannons 507 | . . . . . . . . 7 1 . 2 . 17 16 14 1 1 2 15 14 1 4 . 3 2 4 . 10 18 . 48 157 159 11 AOE 38 | . . 1 3 . . 4 4 6 5 . . . . . . . . . . 1 . . . . . . . . . . . . 7 7 Classes Destroyed 31 | 2 4 1 2 1 1 3 3 1 . . 1 . 2 2 . . 1 . . . . . . . 1 1 . 1 1 . . 2 1 . Worker 38 | . . . . 1 . . 6 . . . 2 1 . 1 . 3 . . . 1 . . . . 1 1 1 . . . . 4 16 . Builder 18 | . 1 . . . . . 2 2 . . 7 . . 2 . . . . . . . . . . . 1 . . 1 . . 2 . . Tunneler 3 | 1 . . . . . . . . . . . . . . . . . . . 1 . . . . . . . . . . . 1 . . Hauler 8 | . . . 2 . . . . . . . 1 . . 3 . . . . . . . . . . . . . 1 1 . . . . . Recycler 27 | 1 5 1 3 1 . . 4 . . . . . . 3 . 1 . . . . . . . . 2 . . . . . . . 6 . Carrier 37 | . . . . . . . . . . . . . . . . . . . . . . . . . . . . . . . . 14 23 . Minesweeper 1 | . . . . . . 1 . . . . . . . . . . . . . . . . . . . . . . . . . . . . Mechanic 14 | . . . . . . . . . . . . . . 1 . . . . . . . . . . . . . . . . . 8 5 . Operator 11 | . . . . . . . . 1 . 9 . . . . . . . . . . . . . . . . . . . . . . 1 . Drone 4 | . . . . . . 2 . . . . . . . . . . . . . . . . . 2 . . . . . . . . . . Watcher 27 | . 2 . 5 . . . 3 1 1 . 1 . . 1 . . . . . . . . . . 3 1 . 1 4 . . . 4 . Swarmer 58 | . 4 . 5 . . . 2 4 4 . 6 . . . . 1 . . 8 . . 2 . 1 . . . . 1 . 12 . 8 . Cutter 8 | . . . . . . . . . . . . . 2 . . . . . . . . . . . . . . . . . 6 . . . Saboteur 27 | . . . . . . . . . . . . . . 1 . . . . . 2 . . . . . 1 . . . . 2 6 15 . Grunt 230 | . 4 2 . . . 5 4 6 3 . 5 . 4 14 8 . . 1 5 15 1 1 . 1 . 1 . . 2 . 20 72 56 . Brawler 26 | . . . . . . . 1 . . . . . 1 2 1 . . . . 1 . . . . . . . . . . . 11 9 . Duelist 25 | . . . . . . 1 1 1 . . . . . . 1 . . . . 1 . . . . . 2 . . . . 1 6 11 . Protector 24 | . . . . . . . . . . . . . . 1 . . . . . . . . . . . . . . . . . 14 9 . Researcher 2 | . . . . . . . . . . . . . . . . . . . . . . . . . . 1 . 1 . . . . . . Sentry 46 | . . . 3 . . . 1 5 . 4 7 . 2 . 3 . . . . 2 . . . 1 . 1 . 1 2 . 8 4 2 . Demolisher 5 | . . 1 . . . . . . . . . . 1 . . . . . . 2 . . . . . 1 . . . . . . . . Specialist 5 | . . . . . . . . . . . 2 . . . . . . . . . . . . . . 1 . . . . . 2 . . Hunter 43 | . . . . . . . 3 . 1 . 4 . . . 4 . . 1 2 . . 1 . . 2 2 . 2 . . . 8 13 . Programmer 83 | . . . . . . . 4 . 1 . 2 . 7 2 . . . 1 . . . . . . . 2 . 10 14 . 2 16 22 . Heavy 4 | . . . . . . . . . . . . . . . . . . . . . . . . . 1 . . . 1 . . 1 1 . Behemoth 8 | . . . . . . . . . . . . . 2 . . . . . 1 . . . . . . . . . . . 2 . 3 . Compactor 1 | . . . . . . . . . . . . . . . . . 1 . . . . . . . . . . . . . . . . . Cetus Guard 6 | . . . . . . . . . 6 . . . . . . . . . . . . . . . . . . . . . . . . . S7 Guard 1 | . . . . . . . . . . . . . . . . . . . . . . . . . . . . . 1 . . . . . M Guard 2 | . . . . . . . . . . . . . . . . . . . . . . . . . . . . . . . . . 2 . Enhanced Grunt 14 | . . . . . . . . . . . . . . . . . . . . . . . . . . . . . . . . . . 14 Enhanced Demolisher 1 | . . . . . . . . . . . . . . . . . . . . . . . 1 . . . . . . . . . . . Enhanced Hunter 4 | . . . . . . . . . . . . . . . . . . . . . . . . . . . . . . . . . . 4 Combat Programmer 2 | . . . . . . . . . . . . . . . . . . . . . . . . . . . . . . . . . 2 . Investigator 5 | . . . . . . . . . . . . . . . . . . . . . . . . . . . . . . . . 2 3 . Striker 24 | . . . . . . . . . . . . . . . . . . . . . . . . . . . . . . . . 9 15 . Executioner 21 | . . . . . . . . . . . . . . . . . . . . . . . . . . . . . 2 . . 10 9 . Alpha 7 2 | . . . . . . . . . . . . . . . . . . . . . . . . . . . . . . . . . 2 . Fortress 1 | . . . . . . . . . . . . . . . . . . . . . . . . . . . . 1 . . . . . . Surgeon 1 | . . . . . 1 . . . . . . . . . . . . . . . . . . . . . . . . . . . . . Butcher 2 | . . . . . . . . . 1 . . . . . . . . . 1 . . . . . . . . . . . . . . . Martyr 2 | . . . . . . . . . . . . . . . . . 2 . . . . . . . . . . . . . . . . . Best Kill Streak 43 | 2 7 2 7 1 1 4 7 4 4 2 7 1 4 8 5 3 1 1 4 8 1 2 . 2 2 6 1 4 5 . 7 32 43 5 Combat Bots Only 34 | . 3 2 5 . . 4 3 4 4 2 7 . 4 5 5 1 1 1 4 8 1 2 . 2 1 4 . 4 3 . 7 28 34 5 Max Kills in Single Turn 7 | 1 1 1 3 1 1 1 6 2 3 1 2 1 1 2 1 1 1 1 2 2 1 1 1 1 1 1 1 1 2 . 2 5 7 3 Gunslinging . | . . . . . . . . . . . . . . . . . . . . . . . . . . . . . . . . . . . Exploded 3 | . . 1 2 . . 1 3 2 3 . . . . . . . . . . 1 . . . . . . . . . . . . 2 1 Melee 1 | . . . . . . . 1 . . . . . . . . . . . . . . . . . . 1 . . . . . . 1 . Uniques/NPCs Destroyed 4 | . . . . . . . . . . . . . . . . . . . . . . . . . . . . . . . . . 2 2 MAIN.C Shell (-1/Command) MAIN.C (-1/Command) A8 (-1/Access_0) A6 (-1/Access_0) Combat | -11 -10 -10 -9 -9 -7 -6 -6 -6 -6 -6 -6 -5 -5 -5 -5 -4 -4 -4 -4 -4 -4 -4 -4 -3 -3 -3 -2 -2 -2 -1 -1 -1 -1 -1 -------- Run | Jun Mat Min Mat Min Zio Pro Fac Ext Cet Arc Hub Fac Gar Fac Gar Fac Was Fac Gar Fac Upp Upp War Pro Res Qua Res Tes Sec Acc Gar Acc Com Ac0 Damage Taken 40420 | . 560 393 241 . . 362 2103 697 2472 449 3839 . 1214 2591 1801 134 . 260 1523 2051 10 91 . 140 439 451 200 893 963 . 2236 3223 4853 6231 Core 3355 | . 83 140 16 . . 14 180 58 99 15 273 . 44 170 188 . . . 116 74 . . . 10 34 152 12 200 37 . 81 330 261 768 Absorbed by Shields 18346 | . . . . . . 84 456 336 425 159 . . . 229 25 . . . 160 1085 8 24 . 88 310 225 203 734 1001 . 2105 2832 3143 4714 Reduced by Siege Mode 558 | . . . . . . . . . 45 22 98 . 50 57 134 . . . . . . . . . . . . . . . . . 152 . Redirected to Core 282 | . . . . . . . . . . . . . . . . . . . . . . . . . . 118 . 164 . . . . . . Redirected to Shielding 425 | . . . . . . . . . . . . . 89 . . . . . . . . . . . . . . . . . 44 . 198 94 Ignored by Resistances 3421 | . . . 39 . . . 199 113 569 42 . . . . . . . 36 181 54 . . . . . . . 71 647 . . 352 1118 . Regen/Repaired (Parts) 5842 | . . . . . 166 . . . . . . . . . . . 106 1 . . . . . . 210 . . . 403 . 681 998 1727 1550 Core Remaining (%) 66 | 100 . 10 . . . 92 . . . . 26 . . . 59 . . . . . . . . 82 . 79 . . 82 . . . . . Volleys Fired 2205 | 3 54 10 40 3 5 24 92 81 82 20 112 4 84 88 61 22 24 17 73 99 6 19 3 24 83 83 19 119 163 1 118 195 274 100 Largest 4 | 2 2 2 2 2 2 2 2 1 2 2 2 2 2 2 2 2 2 2 2 2 1 1 1 1 2 1 1 2 2 1 4 4 4 4 Hottest 480 | 40 90 90 68 46 46 46 83 75 75 70 180 180 240 240 218 196 218 218 218 218 88 120 120 120 207 113 113 244 220 120 480 480 480 480 Shots Fired 3818 | 6 106 16 55 6 8 29 173 81 99 38 193 5 136 135 100 33 48 28 115 116 7 22 3 24 84 82 19 118 155 1 378 363 709 327 Gun 653 | 6 106 12 53 6 6 12 167 . 47 38 161 . . . . . . . . . . . . . . . . . . . . . 39 . Cannon 3049 | . . . . . . . . 59 44 . 32 5 132 135 97 27 48 27 115 105 7 22 3 24 83 81 19 114 152 1 373 361 656 327 Launcher 58 | . . 4 2 . 2 17 5 16 8 . . . 4 . . . . . . . . . . . . . . . . . . . . . Special 58 | . . . . . . . 1 6 . . . . . . 3 6 . 1 . 11 . . . . 1 1 . 4 3 . 5 2 14 . Kinetic 798 | 6 79 . 29 6 6 12 164 3 47 38 161 . . . . . . . . . . . . . . . . 2 8 . . 123 114 . Thermal 2556 | . 12 . . . . . . . . . 32 5 132 135 97 27 48 27 115 70 . 10 3 14 57 36 11 86 122 1 373 238 581 324 Explosive 58 | . . 4 2 . 2 17 5 16 8 . . . 4 . . . . . . . . . . . . . . . . . . . . . Electromagnetic 348 | . 15 12 24 . . . 3 56 44 . . . . . . . . . . 35 7 12 . 10 26 45 8 26 22 . . . . 3 Robot Hit Streak 42 | 3 10 10 14 4 8 5 27 13 29 8 19 . 20 27 42 18 14 19 9 16 3 5 5 8 8 5 5 10 28 . 18 15 34 19 Robot Miss Streak 11 | 1 5 2 3 1 . 3 3 6 8 1 5 . 2 4 1 2 1 4 5 2 1 1 . 2 2 3 2 3 4 . 6 11 6 5 Penetration Max 3 | . . . . . . . . . . . 1 . . . . . . . . . . . . . . . . . 1 . . 3 3 . Secondary Targets 6 | . . 1 . . . . 1 . . . 4 . . . . . . . . . . . . . . . . . . . . . . . Max Gunslinging Chain 1 | . . 1 . . . . 1 . . . 1 . . . . . . . . . . . . . . . . . . . . . . . Capacitor 532 | . . . . . . . . . . . . . . . . . . . . 48 7 22 3 23 81 69 19 110 143 1 6 . . . Shots Hit Robots 2272 | 4 63 11 37 4 6 13 146 59 62 44 119 . 81 89 66 20 31 11 62 89 6 10 2 15 34 40 7 54 81 . 201 200 381 224 Core Hits 1963 | 3 26 5 26 2 3 23 67 40 31 20 58 1 38 37 28 5 4 4 19 36 4 6 1 5 10 13 2 20 37 . 93 495 682 119 Critical Kills 361 | . . . . . . . 1 . . 3 9 . 2 3 2 1 2 . 1 . . . . . . . . 2 8 . 5 174 147 1 Critical Parts Destroyed 397 | . 1 . . . . . 1 . 5 3 12 . . . . . . . . . . . . . . . . 4 10 . . 209 152 . Critical Strikes 825 | . 3 . 2 . . . 3 3 5 13 22 . 2 3 2 1 2 . 1 1 . 1 . . . . . 7 18 . 5 410 320 1 Burn 1 | . 1 . . . . . . . . . . . . . . . . . . . . . . . . . . . . . . . . . Meltdown 30 | . . . . . . . . . . . 1 . 2 3 2 1 2 . 1 . . . . . . . . 1 2 . 5 2 7 1 Destroy 784 | . 1 . 1 . . . 2 . 5 12 21 . . . . . . . . . . . . . . . . 5 16 . . 408 313 . Corrupt 7 | . 1 . 1 . . . . 2 . . . . . . . . . . . 1 . 1 . . . . . 1 . . . . . . Sever 3 | . . . . . . . 1 1 . 1 . . . . . . . . . . . . . . . . . . . . . . . . Melee Attacks 124 | . . . . . . . 16 10 . 17 3 . 8 6 . . . 1 11 5 1 1 . . 12 6 3 6 1 . . . 17 . Kinetic 20 | . . . . . . . . . . . . . . . . . . . . . . . . . . . . 2 1 . . . 17 . Impact 8 | . . . . . . . . . . . . . 8 . . . . . . . . . . . . . . . . . . . . . Slashing 46 | . . . . . . . 16 10 . 17 3 . . . . . . . . . . . . . . . . . . . . . . . Piercing . | . . . . . . . . . . . . . . . . . . . . . . . . . . . . . . . . . . . Sneak Attacks 36 | . . . . . . . 3 4 . 10 . . . 1 . . . 1 1 . . . . . . 1 . . 1 . . . 14 . Combat Hostiles 1 | . . . . . . . . . . . . . . . . . . . . . . . . . . . . . 1 . . . . . Follow-up Attacks . | . . . . . . . . . . . . . . . . . . . . . . . . . . . . . . . . . . . Damage Inflicted 96011 | 43 854 495 1007 74 91 1260 3607 2717 2666 1834 4372 36 2760 3849 2337 464 1083 418 2205 3606 203 322 89 646 1197 1548 294 2364 3488 . 8663 6264 19227 15928 Guns 10401 | 43 769 141 599 62 91 88 2096 . 878 819 3523 . . . . . . . . . . . . . . . . . . . . . 1292 . Cannons 72507 | . . . . . . . . 1292 848 . 562 . 2661 3800 2337 464 1083 418 2205 3246 203 322 89 646 1197 1548 294 2340 3488 . 8663 6261 16186 12354 Explosions 10287 | . 80 354 408 . . 1120 1155 1125 940 . 227 . 58 . . . . . . 360 . . . . . . . . . . . . 886 3574 Melee 2472 | . . . . . . . 281 267 . 1015 . . 22 . . . . . . . . . . . . . . 24 . . . . 863 . Ramming 344 | . 5 . . 12 . 52 75 33 . . 60 36 19 49 . . . . . . . . . . . . . . . . . 3 . . Kinetic 16420 | 43 491 . 320 62 91 88 2048 34 878 819 3523 . . . . . . . . . . . . . . . . 72 122 . . 2917 4912 . Thermal 64278 | . 166 38 40 . . . 548 . . . 562 . 2661 3800 2337 464 1083 418 2205 2243 . . 89 428 404 555 . 1622 2496 . 8663 3344 14315 15797 Explosive 4744 | . . 316 368 . . 1120 607 1125 940 . . . 58 . . . . . . 210 . . . . . . . . . . . . . . Electromagnetic 8640 | . 192 141 279 . . . 48 1258 848 . 227 . . . . . . . . 1153 203 322 . 218 793 993 294 670 870 . . . . 131 Impact 22 | . . . . . . . . . . . . . 22 . . . . . . . . . . . . . . . . . . . . . Slashing 1563 | . . . . . . . 281 267 . 1015 . . . . . . . . . . . . . . . . . . . . . . . . Piercing . | . . . . . . . . . . . . . . . . . . . . . . . . . . . . . . . . . . . Highest Corruption 39 | . . . . . . . 1 13 39 39 25 . 5 27 33 . . . 22 26 26 28 28 . 2 3 2 20 24 . . 8 11 2 Average Corruption 10 | . . . . . . . 1 4 24 7 15 . 2 15 31 . . . 21 22 26 27 28 . 1 2 1 8 21 . . 5 3 1 Corruption Purged 71 | . . . . . . . . . . 37 . . . . . . . . . . . . . . 2 . . . . . . 8 24 . Corruption Blocked 74 | . . . . . . . . . . . . . . . . . . . . . . . 19 . . 15 . . 40 . . . . . Effects 1088 | . . . . . . . 14 38 37 52 62 . 25 80 73 . . . 13 78 40 59 1 . 2 1 . 80 118 . . 159 147 9 Message Errors 273 | . . . . . . . 3 7 8 14 18 . 8 18 14 . . . 6 17 10 17 . . . . . 21 34 . . 41 36 1 Matter Fused 253 | . . . . . . . 4 12 7 17 18 . 4 22 23 . . . 3 15 8 14 . . . . . 18 23 . . 37 25 3 Heat Flow Errors 109 | . . . . . . . . 4 1 4 6 . 3 6 10 . . . 1 6 4 6 1 . . . . 10 14 . . 14 19 . Energy Discharges 128 | . . . . . . . 3 3 2 3 3 . 4 5 8 . . . 1 10 10 10 . . 1 . . 8 16 . . 19 21 1 Parts Rejected 10 | . . . . . . . . 3 1 . . . . 2 . . . . . 1 . . . . . . . 2 1 . . . . . Parts Fused 12 | . . . . . . . . 1 . . 3 . . . . . . . . 5 . . . . . . . 1 1 . . 1 . . Data Loss (minor) 107 | . . . . . . . 3 5 3 4 1 . 1 5 6 . . . . 9 3 5 . . . . . 11 9 . . 21 20 1 Data Loss (major) 52 | . . . . . . . . 1 1 4 6 . 1 4 2 . . . 1 6 3 3 . . . . . 1 2 . . 6 11 . Misfires 54 | . . . . . . . 1 1 2 2 2 . 1 4 2 . . . 1 1 1 3 . . . . . 3 4 . . 11 14 1 Alerts 21 | . . . . . . . . . 1 . 1 . 1 3 3 . . . . 4 1 1 . . 1 . . . . . . 5 . . Misdirections 7 | . . . . . . . . . . . . . . 2 1 . . . . 3 . . . . . . . . 1 . . . . . Weapon Failures 62 | . . . . . . . . 1 11 4 4 . 2 9 4 . . . . 1 . . . . . 1 . 5 13 . . 4 1 2 Overload Shots 1 | . . . . . . . . . . . . . . . . . . . . . . . . . . . . 1 . . . . . . Overflow Damage 2936 | . . 35 . . . 8 197 91 1 267 12 . 65 84 23 16 . 13 37 7 . . . 25 110 98 29 238 178 . 112 6 888 396 Projectiles 2204 | . . . . . . . . 15 . . 12 . 65 84 23 16 . 13 37 7 . . . 25 110 98 29 238 178 . 112 6 749 387 Explosions 331 | . . 35 . . . 6 119 22 1 . . . . . . . . . . . . . . . . . . . . . . . 139 9 Melee 401 | . . . . . . 2 78 54 . 267 . . . . . . . . . . . . . . . . . . . . . . . . Knockbacks 95 | . . . . . . 1 . . . . . . . 2 . . . . . . . . . . . . . . 7 . . 67 18 . Impact 3 | . . . . . . 1 . . . . . . . 2 . . . . . . . . . . . . . . . . . . . . Kinetic 90 | . . . . . . . . . . . . . . . . . . . . . . . . . . . . . 7 . . 65 18 . Secondary 2 | . . . . . . . . . . . . . . . . . . . . . . . . . . . . . . . . 2 . . Self-Inflicted Damage 859 | . 31 59 . . . 49 243 45 65 . 190 . 34 . . . . . . 94 . . . . . . . . . . . . 43 6 Shots 22 | . 1 3 . . . 3 4 3 2 . 2 . 1 . . . . . . 1 . . . . . . . . . . . . 1 1 Rammed 39 | . 4 . . 3 . 4 10 4 . . 8 1 1 3 . . . . . . . . . . . . . . . . . 1 . . Targets Rammed 44 | . 4 . . 4 . 5 12 4 . . 8 1 1 4 . . . . . . . . . . . . . . . . . 1 . . Kicked . | . . . . . . . . . . . . . . . . . . . . . . . . . . . . . . . . . . . Crushed 5 | . . . . 1 . 1 2 . . . . . . 1 . . . . . . . . . . . . . . . . . . . . Highest Temperature 380 | . 251 125 100 . . 18 208 218 251 226 351 96 188 324 278 150 168 81 315 380 238 168 68 276 372 197 186 184 274 113 198 198 198 178 Average Temperature 173 | . 75 40 25 . . 7 48 40 57 97 82 38 32 113 81 55 49 28 84 72 86 55 44 93 90 75 80 36 83 57 160 197 184 137 Received Heat Transfer 3998 | . 126 33 72 . . 147 389 231 219 114 486 . 93 565 174 . . 9 141 393 5 7 . 23 . . 4 38 24 . 72 282 339 12 Effects 13 | . 1 . . . . . . . . . 3 . . 6 . . . . 1 2 . . . . . . . . . . . . . . Shutdowns 1 | . . . . . . . . . . . . . . . . . . . 1 . . . . . . . . . . . . . . . Energy Bleed 5 | . . . . . . . . . . . 2 . . 2 . . . . . 1 . . . . . . . . . . . . . . Interference 6 | . 1 . . . . . . . . . 1 . . 4 . . . . . . . . . . . . . . . . . . . . Matter Decay 1 | . . . . . . . . . . . . . . . . . . . . 1 . . . . . . . . . . . . . . Siege Activations 41 | . . . . . . . . . 3 3 10 . 10 4 4 . . . . . . . . . . . . . . . . . 7 . Total Turns 2432 | . . . . . . . . . 82 54 163 . 160 64 98 . . . . . . . . . . . . . . . . . 1811 . Longest Duration 821 | . . . . . . . . . 66 26 36 . 33 28 63 . . . . . . . . . . . . . . . . . 821 . Robots Corrupted 37 | . 1 1 . . . . . 3 5 . . . . . . . . . . 7 . . . 2 3 7 . 3 4 . . . . 1 Combat Hostiles 30 | . 1 . . . . . . 3 5 . . . . . . . . . . 7 . . . 2 1 6 . 2 2 . . . . 1 Parts Fried 90 | . 1 . 2 . . . . 9 7 . . . . 1 . . . . . 18 2 2 . 2 12 14 . 5 7 . . . 4 4 Impact Corruptions 1 | . . . . . . 1 . . . . . . . . . . . . . . . . . . . . . . . . . . . . Robots Melted 32 | . . . . . . . . . . . 1 . 2 4 2 1 2 . 1 . . . . . . . . 1 2 . 5 2 8 1 Combat Hostiles 28 | . . . . . . . . . . . . . 2 4 2 . 1 . 1 . . . . . . . . 1 2 . 5 2 7 1 Parts Melted 164 | . 1 . . . . . . . . . 5 . 14 10 9 4 1 . 10 4 . . . 1 . 2 . 10 12 . 23 21 31 6 Heat Transferred 49793 | . 433 50 50 . . . 350 . . . 800 . 3285 3236 3003 700 1650 409 2554 2206 . . 74 370 370 444 . 1184 1887 . 6789 2639 9974 7336 Parts Sabotaged 6 | . . . . . . . . . . . . . . 1 . . . . . . . . . . . . . . . . 2 1 2 . Parts Stolen . | . . . . . . . . . . . . . . . . . . . . . . . . . . . . . . . . . . . Parts Stripped . | . . . . . . . . . . . . . . . . . . . . . . . . . . . . . . . . . . . Power Chain Reactions 7 | . 2 1 1 . . . 1 . . . . . . . . . . . . 2 . . . . . . . . . . . . . . Missiles Intercepted 2 | . . . . . . . . . . . . . . . . . . . . . . . . . . . . . . . . . 2 . Alert | -11 -10 -10 -9 -9 -7 -6 -6 -6 -6 -6 -6 -5 -5 -5 -5 -4 -4 -4 -4 -4 -4 -4 -4 -3 -3 -3 -2 -2 -2 -1 -1 -1 -1 -1 ------- Run | Jun Mat Min Mat Min Zio Pro Fac Ext Cet Arc Hub Fac Gar Fac Gar Fac Was Fac Gar Fac Upp Upp War Pro Res Qua Res Tes Sec Acc Gar Acc Com Ac0 Peak Influence 10144 | 10 253 154 380 107 . . 811 469 416 312 1013 511 1232 1092 1462 1050 309 547 1224 1304 . . . . 312 1016 727 563 499 332 2360 6230 10144 . Initial 3987 | . 6 45 57 102 . . 752 186 200 135 . 496 364 646 751 767 305 81 382 642 . . . . . 68 571 408 261 299 265 1416 3987 . Average 2618 | 8 128 115 207 95 . . 548 282 314 55 543 500 827 875 1145 872 216 255 765 834 . . . . 114 593 595 256 291 302 1259 5476 8547 . Maximum Alert Level 5 | . 1 . 1 . . . 3 2 2 1 3 2 4 4 4 3 1 2 4 4 . . . . 1 3 3 2 2 1 5 5 5 . Low Security (%) 13 | 100 69 100 49 100 . . . 16 . 87 14 . . . . . 45 47 . . . . . . 68 11 . 44 16 . . . . . Level 1 13 | . 30 . 50 . . . 17 78 94 12 8 . 4 . . . 54 43 2 . . . . . 31 7 . 21 73 100 11 . . . Level 2 13 | . . . . . . . 67 5 5 . 40 100 21 22 . . . 8 45 30 . . . . . 31 97 34 10 . 18 . . . Level 3 12 | . . . . . . . 15 . . . 35 . 59 77 29 100 . . 32 50 . . . . . 49 2 . . . 13 . . . Level 4 5 | . . . . . . . . . . . . . 14 . 70 . . . 18 18 . . . . . . . . . . 23 5 . . Level 5 15 | . . . . . . . . . . . . . . . . . . . . . . . . . . . . . . . 32 . 53 . High Security 26 | . . . . . . . . . . . . . . . . . . . . . . . . . . . . . . . . 94 46 . Max Security . | . . . . . . . . . . . . . . . . . . . . . . . . . . . . . . . . . . . Sterilizations 1 | . . . . . . . . . . . . . . . . . . . . . . . . . . . . . . . . 1 . . Squads Dispatched 164 | . 1 . . . . . 7 2 . . 11 2 . 11 . 1 . 2 . 10 . . . . 7 11 4 7 8 1 . 39 40 . Investigation 10 | . . . . . . . . 1 . . 1 1 . . . . . . . 1 . . . . . . . . 2 1 . . 3 . Extermination 33 | . . . . . . . 4 . . . 1 . . 3 . . . 1 . 2 . . . . 4 4 1 5 6 . . 1 1 . Reinforcement 29 | . 1 . . . . . 2 1 . . 6 . . 4 . . . . . 3 . . . . 3 3 2 2 . . . 2 . . Assault 87 | . . . . . . . 1 . . . . 1 . 4 . 1 . . . 4 . . . . . 4 1 . . . . 35 36 . Garrison 5 | . . . . . . . . . . . 3 . . . . . . 1 . . . . . . . . . . . . . 1 . . Intercept . | . . . . . . . . . . . . . . . . . . . . . . . . . . . . . . . . . . . Searches Triggered 2 | . . . . . . . 2 . . . . . . . . . . . . . . . . . . . . . . . . . . . Construction Impeded 5 | . . . . . . . 1 . . . 2 . . 1 . . . . . . . . . . . . . . . . . 1 . . Haulers Reinforced 2 | . . . . . . . . . . . . . . 2 . . . . . . . . . . . . . . . . . . . . Active Scanning Responses 6 | . . . . . . . . . . . . . . . . . . . . . . . . . . . . . 2 . 1 . 3 . Cargo Convoy Interrupts . | . . . . . . . . . . . . . . . . . . . . . . . . . . . . . . . . . . . Stealth | -11 -10 -10 -9 -9 -7 -6 -6 -6 -6 -6 -6 -5 -5 -5 -5 -4 -4 -4 -4 -4 -4 -4 -4 -3 -3 -3 -2 -2 -2 -1 -1 -1 -1 -1 --------- Run | Jun Mat Min Mat Min Zio Pro Fac Ext Cet Arc Hub Fac Gar Fac Gar Fac Was Fac Gar Fac Upp Upp War Pro Res Qua Res Tes Sec Acc Gar Acc Com Ac0 Distress Signals 32 | . 2 . 5 . . 1 . 3 2 . 2 . . 1 . . . 2 . 4 . . . . . . . . . . . 1 9 . Communications Jammed 166 | . . . . . . . . . . . . . . . . . . . . 3 . . . . 6 36 1 3 27 . . 50 40 . Distress Signals 152 | . . . . . . . . . . . . . . . . . . . . 3 . . . . 6 36 . 3 19 . . 47 38 . Times Spotted 1077 | . 15 4 16 . 2 12 33 30 20 9 46 . 29 45 26 7 . 20 31 64 4 11 4 9 24 53 15 30 28 . 62 211 169 48 Peak Tracking Total 24 | . 4 2 6 . 1 4 4 4 5 1 6 1 5 7 5 5 . 6 5 8 3 5 3 3 3 6 3 4 2 . 5 24 17 5 Tactical Retreats 44 | . 2 . 1 . 2 1 1 . 1 . 2 . 2 3 2 . . . 2 3 . . . 2 1 . 1 . 2 . 2 7 7 . Traps | -11 -10 -10 -9 -9 -7 -6 -6 -6 -6 -6 -6 -5 -5 -5 -5 -4 -4 -4 -4 -4 -4 -4 -4 -3 -3 -3 -2 -2 -2 -1 -1 -1 -1 -1 ------- Run | Jun Mat Min Mat Min Zio Pro Fac Ext Cet Arc Hub Fac Gar Fac Gar Fac Was Fac Gar Fac Upp Upp War Pro Res Qua Res Tes Sec Acc Gar Acc Com Ac0 Traps Triggered 59 | . . . . . . . . 6 . . . . 3 1 9 1 . . 7 1 . . . . 1 . . 1 1 . 13 3 12 . Indirectly . | . . . . . . . . . . . . . . . . . . . . . . . . . . . . . . . . . . . Trap Hack Attempts . | . . . . . . . . . . . . . . . . . . . . . . . . . . . . . . . . . . . Triggered . | . . . . . . . . . . . . . . . . . . . . . . . . . . . . . . . . . . . Disarmed . | . . . . . . . . . . . . . . . . . . . . . . . . . . . . . . . . . . . Reprogrammed . | . . . . . . . . . . . . . . . . . . . . . . . . . . . . . . . . . . . Reused . | . . . . . . . . . . . . . . . . . . . . . . . . . . . . . . . . . . . Traps Extracted . | . . . . . . . . . . . . . . . . . . . . . . . . . . . . . . . . . . . Installed . | . . . . . . . . . . . . . . . . . . . . . . . . . . . . . . . . . . . Triggered 29 | . . . . . . 1 . . . . . . . . . . . . . . . 3 23 . . . . 2 . . . . . . Machines | -11 -10 -10 -9 -9 -7 -6 -6 -6 -6 -6 -6 -5 -5 -5 -5 -4 -4 -4 -4 -4 -4 -4 -4 -3 -3 -3 -2 -2 -2 -1 -1 -1 -1 -1 ---------- Run | Jun Mat Min Mat Min Zio Pro Fac Ext Cet Arc Hub Fac Gar Fac Gar Fac Was Fac Gar Fac Upp Upp War Pro Res Qua Res Tes Sec Acc Gar Acc Com Ac0 Machines Disabled 134 | . . 1 . . . . 4 1 . 1 19 . 8 7 7 1 . 2 8 2 . . . . 1 11 1 14 7 . 4 19 13 3 Max in Single Turn 6 | . . 1 . . . . 4 1 . 1 6 . 1 1 1 . . . 1 1 . . . . . 1 1 1 1 . 1 2 2 1 Garrison Access 6 | . . . . . . . . . . . . . . . . . . . . 1 . . . . . . 1 . . . . 4 . . Garrison Relay 10 | . . . . . . . . . . . . . 2 . 4 . . . 1 . . . . . . . . . . . 3 . . . Phase Generator 1 | . . . . . . . . . . . . . . . . . . . . . . . . . . . . . . . . . 1 . Network Hub 2 | . . . . . . . . . . . 2 . . . . . . . . . . . . . . . . . . . . . . . Energy Cycler 1 | . . . . . . . . . . . . . . . . . . . . . . . . . . . . . . . . 1 . . Machines Repaired . | . . . . . . . . . . . . . . . . . . . . . . . . . . . . . . . . . . . Machines Sabotaged . | . . . . . . . . . . . . . . . . . . . . . . . . . . . . . . . . . . . Overloaded Fab Kills 8 | . . . . . . . . . . . . . . . . . . . . 8 . . . . . . . . . . . . . . Hacking | -11 -10 -10 -9 -9 -7 -6 -6 -6 -6 -6 -6 -5 -5 -5 -5 -4 -4 -4 -4 -4 -4 -4 -4 -3 -3 -3 -2 -2 -2 -1 -1 -1 -1 -1 --------- Run | Jun Mat Min Mat Min Zio Pro Fac Ext Cet Arc Hub Fac Gar Fac Gar Fac Was Fac Gar Fac Upp Upp War Pro Res Qua Res Tes Sec Acc Gar Acc Com Ac0 Machines Accessed 83 | . 2 . 3 . . . 4 7 . . 4 2 4 7 2 1 . 5 1 4 . . . . 5 8 2 8 8 3 2 . 1 . Terminals 60 | . 2 . 3 . . . 2 7 . . 3 . 4 3 2 1 . 1 1 . . . . . 4 7 1 7 8 1 2 . 1 . Fabricators 8 | . . . . . . . 1 . . . . . . 2 . . . 1 . 2 . . . . . . . 1 . 1 . . . . Repair Stations 5 | . . . . . . . . . . . . 1 . 1 . . . 1 . 1 . . . . 1 . . . . . . . . . Recycling Units 2 | . . . . . . . 1 . . . . . . . . . . . . 1 . . . . . . . . . . . . . . Scanalyzers 2 | . . . . . . . . . . . . . . . . . . 1 . . . . . . . 1 . . . . . . . . Garrison Access 6 | . . . . . . . . . . . 1 1 . 1 . . . 1 . . . . . . . . 1 . . 1 . . . . Total Hacks 308 | . 5 . 8 . . . 17 12 . . 11 6 17 39 7 4 . 29 3 13 . . . . 27 27 8 31 27 8 5 . 4 . Successful 102 | . 3 . 4 . . . 9 5 . . 4 1 5 10 1 2 . 12 1 4 . . . . 8 7 3 10 7 3 2 . 1 . Failed 206 | . 2 . 4 . . . 8 7 . . 7 5 12 29 6 2 . 17 2 9 . . . . 19 20 5 21 20 5 3 . 3 . Catastrophic 56 | . 1 . 2 . . . . . . . 2 1 4 9 2 1 . 3 . 2 . . . . 5 7 2 2 8 1 2 . 2 . Database Lockouts . | . . . . . . . . . . . . . . . . . . . . . . . . . . . . . . . . . . . Manual 124 | . 2 . 7 . . . 10 5 . . 3 3 9 4 . 1 . 13 2 10 . . . . 14 8 5 13 12 2 1 . . . Terminals 209 | . 5 . 8 . . . 7 12 . . 9 . 17 17 7 4 . 12 3 . . . . . 24 17 3 25 27 3 5 . 4 . Fabricators 43 | . . . . . . . 4 . . . . . . 16 . . . 6 . 10 . . . . . . . 6 . 1 . . . . Repair Stations 17 | . . . . . . . . . . . . 3 . 4 . . . 6 . 1 . . . . 3 . . . . . . . . . Recycling Units 8 | . . . . . . . 6 . . . . . . . . . . . . 2 . . . . . . . . . . . . . . Scanalyzers 13 | . . . . . . . . . . . . . . . . . . 3 . . . . . . . 10 . . . . . . . . Garrison Access 18 | . . . . . . . . . . . 2 3 . 2 . . . 2 . . . . . . . . 5 . . 4 . . . . Terminal Hacks 59 | . 3 . 4 . . . 4 5 . . 4 . 4 3 1 2 . 5 1 . . . . . 5 2 . 6 7 . 2 . 1 . Robot Analysis 4 | . 1 . 3 . . . . . . . . . . . . . . . . . . . . . . . . . . . . . . . Open Door 10 | . . . . . . . 1 4 . . . . . . 1 . . . . . . . . . . . . . 3 . 1 . . . Branch Access Points 1 | . . . . . . . 1 . . . . . . . . . . . . . . . . . . . . . . . . . . . Emergency Access Points 4 | . . . . . . . . . . . . . 1 . . . . . 1 . . . . . . . . 1 . . 1 . . . Terminal Index 4 | . . . . . . . . 1 . . . . . . . 1 . 1 . . . . . . . . . 1 . . . . . . Repair Station Index 1 | . . . . . . . . . . . . . . 1 . . . . . . . . . . . . . . . . . . . . Alert Level 1 | . . . . . . . . . . . 1 . . . . . . . . . . . . . . . . . . . . . . . Unreport Threat 8 | . . . . . . . 1 . . . . . . . . . . 2 . . . . . . 1 1 . 1 2 . . . . . Locate Traps 5 | . 1 . . . . . . . . . . . . . . . . . . . . . . . 1 . . 2 1 . . . . . Maintenance Status 2 | . . . . . . . . . . . . . . . . . . . . . . . . . . . . 1 . . . . 1 . Recall Investigation 1 | . . . . . . . . . . . 1 . . . . . . . . . . . . . . . . . . . . . . . Recall Reinforcements 1 | . . . . . . . . . . . . . . . . . . . . . . . . . 1 . . . . . . . . . Hauler Manifests 3 | . . . . . . . . . . . . . . 1 . 1 . 1 . . . . . . . . . . . . . . . . Zone Layout 11 | . 1 . 1 . . . 1 . . . 2 . . 1 . . . 1 . . . . . . 2 1 . . 1 . . . . . Garrison Registry 1 | . . . . . . . . . . . . . 1 . . . . . . . . . . . . . . . . . . . . . Patrol Navigation 1 | . . . . . . . . . . . . . 1 . . . . . . . . . . . . . . . . . . . . . Security Stations 1 | . . . . . . . . . . . . . 1 . . . . . . . . . . . . . . . . . . . . . Fabricator Hacks 6 | . . . . . . . 1 . . . . . . 2 . . . 1 . 1 . . . . . . . 1 . . . . . . Network Status 5 | . . . . . . . 1 . . . . . . 1 . . . 1 . 1 . . . . . . . 1 . . . . . . Build 1 | . . . . . . . . . . . . . . 1 . . . . . . . . . . . . . . . . . . . . Repair Station Hacks 5 | . . . . . . . . . . . . . . 1 . . . 2 . . . . . . 2 . . . . . . . . . Scan Component 4 | . . . . . . . . . . . . . . 1 . . . 2 . . . . . . 1 . . . . . . . . . Repair 1 | . . . . . . . . . . . . . . . . . . . . . . . . . 1 . . . . . . . . . Recycling Unit Hacks 1 | . . . . . . . 1 . . . . . . . . . . . . . . . . . . . . . . . . . . . Retrieve Components 1 | . . . . . . . 1 . . . . . . . . . . . . . . . . . . . . . . . . . . . Scanalyzer 3 | . . . . . . . . . . . . . . . . . . . . . . . . . . 3 . . . . . . . . Insert Component 3 | . . . . . . . . . . . . . . . . . . . . . . . . . . 3 . . . . . . . . Garrison Access Hacks 9 | . . . . . . . . . . . . 1 . 2 . . . 2 . . . . . . . . 2 . . 2 . . . . Unlock Access 4 | . . . . . . . . . . . . 1 . 1 . . . 1 . . . . . . . . . . . 1 . . . . Seal Access 1 | . . . . . . . . . . . . . . . . . . . . . . . . . . . 1 . . . . . . . Coupler Status 4 | . . . . . . . . . . . . . . 1 . . . 1 . . . . . . . . 1 . . 1 . . . . Unauthorized Hacks 19 | . . . . . . . 3 . . . . . 1 2 . . . 2 . 3 . . . . 1 2 1 3 . 1 . . . . Terminals 8 | . . . . . . . . . . . . . 1 1 . . . 1 . . . . . . 1 2 1 1 . . . . . . Track 3 | . . . . . . . . . . . . . 1 . . . . . . . . . . . . 1 1 . . . . . . . Assimilate 3 | . . . . . . . . . . . . . . . . . . . . . . . . . 1 1 . 1 . . . . . . Operators 2 | . . . . . . . . . . . . . . 1 . . . 1 . . . . . . . . . . . . . . . . Fabricators 7 | . . . . . . . 1 . . . . . . 1 . . . 1 . 2 . . . . . . . 2 . . . . . . Liberate 1 | . . . . . . . . . . . . . . . . . . . . . . . . . . . . 1 . . . . . . Haulers 5 | . . . . . . . 1 . . . . . . 1 . . . 1 . 1 . . . . . . . 1 . . . . . . Overload 1 | . . . . . . . . . . . . . . . . . . . . 1 . . . . . . . . . . . . . . Repair Stations 1 | . . . . . . . . . . . . . . . . . . . . 1 . . . . . . . . . . . . . . Mechanics 1 | . . . . . . . . . . . . . . . . . . . . 1 . . . . . . . . . . . . . . Recycling Units 2 | . . . . . . . 2 . . . . . . . . . . . . . . . . . . . . . . . . . . . Reject 1 | . . . . . . . 1 . . . . . . . . . . . . . . . . . . . . . . . . . . . Recyclers 1 | . . . . . . . 1 . . . . . . . . . . . . . . . . . . . . . . . . . . . Scanalyzers . | . . . . . . . . . . . . . . . . . . . . . . . . . . . . . . . . . . . Garrison Access 1 | . . . . . . . . . . . . . . . . . . . . . . . . . . . . . . 1 . . . . Eject 1 | . . . . . . . . . . . . . . . . . . . . . . . . . . . . . . 1 . . . . Data Cores Recovered 2 | . . . . . . . . . . . . . . . . . . . . . . . . . . 1 . 1 . . . . . . Used . | . . . . . . . . . . . . . . . . . . . . . . . . . . . . . . . . . . . Hacking Detections 68 | . 2 . 3 . . . 3 3 . . 4 2 4 6 2 1 . 4 1 3 . . . . 5 8 2 6 5 2 1 . 1 . Full Trace Events 2 | . . . . . . . . . . . 1 1 . . . . . . . . . . . . . . . . . . . . . . Feedback Events 1 | . . . . . . . . . . . 1 . . . . . . . . . . . . . . . . . . . . . . . Corruption 1 | . . . . . . . . . . . 1 . . . . . . . . . . . . . . . . . . . . . . . Feedback Blocked . | . . . . . . . . . . . . . . . . . . . . . . . . . . . . . . . . . . . Robot Schematics Acquired 4 | . . . . . . . . . . . . . . . . . . . . . . . . . . 2 . 2 . . . . . . Robots Built . | . . . . . . . . . . . . . . . . . . . . . . . . . . . . . . . . . . . Authchips . | . . . . . . . . . . . . . . . . . . . . . . . . . . . . . . . . . . . Time . | . . . . . . . . . . . . . . . . . . . . . . . . . . . . . . . . . . . Total Robot Build Rating . | . . . . . . . . . . . . . . . . . . . . . . . . . . . . . . . . . . . Part Schematics Acquired 2 | . . . . . . . . . . . . . . . . . . . . . . . . . . 1 . 1 . . . . . . Parts Built . | . . . . . . . . . . . . . . . . . . . . . . . . . . . . . . . . . . . Authchips . | . . . . . . . . . . . . . . . . . . . . . . . . . . . . . . . . . . . Time 64 | . . . . . . . . . . . . . . 64 . . . . . . . . . . . . . . . . . . . . Total Part Build Rating . | . . . . . . . . . . . . . . . . . . . . . . . . . . . . . . . . . . . Parts Repaired 1 | . . . . . . . . . . . . . . . . . . . . . . . . . 1 . . . . . . . . . Time 22 | . . . . . . . . . . . . . . . . . . . . . . . . . 22 . . . . . . . . . Parts Recycled . | . . . . . . . . . . . . . . . . . . . . . . . . . . . . . . . . . . . Recycled Matter . | . . . . . . . . . . . . . . . . . . . . . . . . . . . . . . . . . . . Retrieved Matter . | . . . . . . . . . . . . . . . . . . . . . . . . . . . . . . . . . . . Retrieved Components 10 | . . . . . . . 10 . . . . . . . . . . . . . . . . . . . . . . . . . . . Parts Scanalyzed . | . . . . . . . . . . . . . . . . . . . . . . . . . . . . . . . . . . . Part Schematics Acquired . | . . . . . . . . . . . . . . . . . . . . . . . . . . . . . . . . . . . Parts Damaged . | . . . . . . . . . . . . . . . . . . . . . . . . . . . . . . . . . . . Bothacking | -11 -10 -10 -9 -9 -7 -6 -6 -6 -6 -6 -6 -5 -5 -5 -5 -4 -4 -4 -4 -4 -4 -4 -4 -3 -3 -3 -2 -2 -2 -1 -1 -1 -1 -1 ------------ Run | Jun Mat Min Mat Min Zio Pro Fac Ext Cet Arc Hub Fac Gar Fac Gar Fac Was Fac Gar Fac Upp Upp War Pro Res Qua Res Tes Sec Acc Gar Acc Com Ac0 Used RIF Installer 4 | . . . . . . . . . . . . . 1 . 1 . . . 1 . . . . . . . . . . . 1 . . . Command Fork 1 | . . . . . . . . . . . . . . . 1 . . . . . . . . . . . . . . . . . . . Robot Detection 1 | . . . . . . . . . . . . . . . . . . . . . . . . . . . . . . . 1 . . . Watcher Feeds 1 | . . . . . . . . . . . . . . . . . . . 1 . . . . . . . . . . . . . . . Robots Hacked 44 | . . . . . . . 1 . . . . . . 4 1 1 . 1 4 4 1 1 . . 7 5 2 3 1 . 2 1 5 . Non-combat 6 | . . . . . . . 1 . . . . . . . . 1 . . . 1 . . . . . 1 . 1 . . . 1 . . Combat 38 | . . . . . . . . . . . . . . 4 1 . . 1 4 3 1 1 . . 7 4 2 2 1 . 2 . 5 . Robot Hacks Applied 50 | . . . . . . . 1 . . . . . . 4 1 1 . 1 4 9 1 1 . . 7 5 2 4 1 . 2 1 5 . no_distress 1 | . . . . . . . . . . . . . . . . . . . . . . . . . . 1 . . . . . . . . find_chute 2 | . . . . . . . 1 . . . . . . . . 1 . . . . . . . . . . . . . . . . . . purge_threat 8 | . . . . . . . . . . . . . . . . . . . . 6 . . . . . . . 2 . . . . . . amplify_resonance 1 | . . . . . . . . . . . . . . . . . . . . . . . . . . . . . . . 1 . . . streamctrl_high 15 | . . . . . . . . . . . . . . . . . . . 1 . 1 1 . . 5 3 1 2 . . 1 . . . formatsys_low 2 | . . . . . . . . . . . . . . . . . . . . . . . . . . . . . 1 . . 1 . . formatsys_high 21 | . . . . . . . . . . . . . . 4 1 . . 1 3 3 . . . . 2 1 1 . . . . . 5 . Relay Couplers Released 52 | . . . . . . . . . . . 4 . 10 . 14 . . . 5 1 . . . . . . 2 . . 4 11 1 . . Ejected 4 | . . . . . . . . . . . . . . . . . . . . . . . . . . . . . . 4 . . . . Machine Destruction 44 | . . . . . . . . . . . . . 10 . 14 . . . 5 1 . . . . . . 2 . . . 11 1 . . Programmers 4 | . . . . . . . . . . . 4 . . . . . . . . . . . . . . . . . . . . . . . Attached 32 | . . . . . . . . . . . . . . 1 3 1 . 1 3 4 . . . 1 . 1 . 1 . . 8 1 7 . Fabnet Peak Effective % . | . . . . . . . . . . . . . . . . . . . . . . . . . . . . . . . . . . . Robots Rewired 10 | . . . . . . . . 4 . . . . . . . 3 . . 1 . . . . . . . . . . . 2 . . . Allies Hacked 27 | . . . . . . . . . . . . . . 3 . . . 1 1 2 . 3 . . 2 7 2 4 1 . . 1 . . Hacks Repelled 11 | . . . . . . . . . . . . . . . . . . . . 1 . 2 . . . 3 1 4 . . . . . . Allies | -11 -10 -10 -9 -9 -7 -6 -6 -6 -6 -6 -6 -5 -5 -5 -5 -4 -4 -4 -4 -4 -4 -4 -4 -3 -3 -3 -2 -2 -2 -1 -1 -1 -1 -1 -------- Run | Jun Mat Min Mat Min Zio Pro Fac Ext Cet Arc Hub Fac Gar Fac Gar Fac Was Fac Gar Fac Upp Upp War Pro Res Qua Res Tes Sec Acc Gar Acc Com Ac0 Total Allies 109 | . . . . . . . . 9 . . . . . 7 3 3 20 1 5 7 1 3 . . 10 17 5 5 1 . 4 1 7 . Largest Group 24 | . . . . . . . . 6 5 . . . . 3 3 4 24 22 12 5 3 5 3 3 7 12 9 5 1 . 2 1 6 . Highest-Rated Group 977 | . . . . . . . . 268 140 . . . . 137 112 191 926 826 473 309 245 306 240 240 555 825 599 389 62 . 116 41 977 . Highest-Rated Ally 215 | . . . . . . . . 159 39 . . . . 68 54 56 56 56 99 137 137 137 137 137 82 82 82 82 62 . 58 41 215 . Total Orders 57 | . . . . . . . . . . . . . . . 5 . . . 2 . . 3 9 . 1 15 . 9 1 . . 2 10 . STAY 34 | . . . . . . . . . . . . . . . 3 . . . 1 . . 2 8 . 1 7 . 4 1 . . 1 6 . FOLLOW 22 | . . . . . . . . . . . . . . . 2 . . . 1 . . 1 1 . . 8 . 5 . . . . 4 . AID 1 | . . . . . . . . . . . . . . . . . . . . . . . . . . . . . . . . 1 . . Ally Attacks 1023 | . . . . . . . . 68 31 . . . . 31 19 30 4 167 64 87 7 34 4 9 77 204 42 67 4 . 13 . 61 . Total Damage 31422 | . . . . . . . . 1685 709 . . . . 1939 589 685 42 4077 1916 2963 204 1078 44 461 1579 6165 1604 1930 . . 331 . 3421 . Kills 164 | . . . . . . . . 12 4 . . . . 9 3 6 . 21 7 20 2 6 1 3 11 31 11 10 . . 2 . 5 . Allies Corrupted 2 | . . . . . . . . . . . . . . . . . . . . . . . . . . . . 1 1 . . . . . Allies Melted 5 | . . . . . . . . . . . . . . 1 . . 1 . . . . . 3 . . . . . . . . . . . Intel | -11 -10 -10 -9 -9 -7 -6 -6 -6 -6 -6 -6 -5 -5 -5 -5 -4 -4 -4 -4 -4 -4 -4 -4 -3 -3 -3 -2 -2 -2 -1 -1 -1 -1 -1 ------- Run | Jun Mat Min Mat Min Zio Pro Fac Ext Cet Arc Hub Fac Gar Fac Gar Fac Was Fac Gar Fac Upp Upp War Pro Res Qua Res Tes Sec Acc Gar Acc Com Ac0 Robot Analysis Total 4 | . 1 . 3 . . . . . . . . . . . . . . . . . . . . . . . . . . . . . . . Derelict Logs Recovered 7 | . . . . 1 . 2 . . . . . . . . . . . . . . 2 2 . . . . . . . . . . . . Drone Launches . | . . . . . . . . . . . . . . . . . . . . . . . . . . . . . . . . . . . Drone Recoveries . | . . . . . . . . . . . . . . . . . . . . . . . . . . . . . . . . . . . Exploration | -11 -10 -10 -9 -9 -7 -6 -6 -6 -6 -6 -6 -5 -5 -5 -5 -4 -4 -4 -4 -4 -4 -4 -4 -3 -3 -3 -2 -2 -2 -1 -1 -1 -1 -1 ------------- Run | Jun Mat Min Mat Min Zio Pro Fac Ext Cet Arc Hub Fac Gar Fac Gar Fac Was Fac Gar Fac Upp Upp War Pro Res Qua Res Tes Sec Acc Gar Acc Com Ac0 Turns Passed 69028 | 45 492 86 682 447 4650 879 2338 2071 575 2862 1559 314 1744 1750 1478 561 736 754 1807 1743 742 1233 2461 854 1632 1806 768 2210 2174 295 2342 8836 15325 777 Spaces Moved 26308 | 20 199 43 264 174 1663 417 769 685 162 632 553 174 660 581 599 338 425 415 909 933 498 818 198 534 764 969 424 1075 1000 164 891 3402 4666 290 Core 218 | . . . . . . . . . . 136 . . . . . . . . . . . . . . . . . . . . . . 82 . Treads 7398 | 20 116 . 260 174 1663 417 769 685 162 496 553 174 660 581 599 45 . . . . . . . . . . . . . . . . 24 . Legs 130 | . 83 43 4 . . . . . . . . . . . . . . . . . . . . . . . . . . . . . . . Wheels 18562 | . . . . . . . . . . . . . . . . 293 425 415 909 933 498 818 198 534 764 969 424 1075 1000 164 891 3402 4560 290 Hover . | . . . . . . . . . . . . . . . . . . . . . . . . . . . . . . . . . . . Flight . | . . . . . . . . . . . . . . . . . . . . . . . . . . . . . . . . . . . Fastest Speed 120 | 160 120 120 120 246 166 166 240 243 160 160 160 160 160 152 152 125 125 140 146 145 145 145 145 145 145 150 170 170 170 170 170 190 147 144 Average Speed 206 | 160 144 120 191 246 239 179 243 245 192 426 187 160 191 231 201 140 137 153 162 156 145 145 145 145 148 164 170 171 170 170 190 209 265 148 Slowest Speed 4300 | 160 190 120 246 246 246 246 246 246 330 1400 240 160 245 245 232 232 140 161 165 165 145 145 145 145 163 170 170 230 170 190 250 270 4300 190 Overloaded Moves . | . . . . . . . . . . . . . . . . . . . . . . . . . . . . . . . . . . . Propulsion Burnouts . | . . . . . . . . . . . . . . . . . . . . . . . . . . . . . . . . . . . Robots Hopped . | . . . . . . . . . . . . . . . . . . . . . . . . . . . . . . . . . . . Cave-ins Triggered 1 | . . . . . . . . . . . . . . . . . . . . . . . . . . . . . . . . . 1 . Teleports 3 | . . . . . . . . . . . . . . . . . . . . . . . . . . 1 . . . . 1 . 1 . Exploration Rate (%) 51 | 2 44 12 29 43 86 55 18 82 57 91 45 6 78 21 65 12 95 16 90 28 68 76 19 73 28 94 18 95 57 7 88 90 87 25 Regions Visited 34 Branch Regions 17 Pre-discovered Areas 2 | . . . . 1 . . . . . . . . . . . . . . . . . 1 . . . . . . . . . . . . Known Exits Taken 19 | . . . . . . 1 1 1 1 1 1 1 . 1 . . . 1 . 1 1 1 1 1 1 1 1 1 . 1 . . . . Unknown Exits Taken 9 | 1 1 1 1 1 1 . . . . . . . . . . . . . . . . . . . . . . . 1 . . 1 1 . Scrap Searched 14 | . . 1 . . 4 . . . . . . . . . . . . . . . 3 1 . 5 . . . . . . . . . . Spaces Dug 329 | . . . 10 . . 27 9 14 . . 13 4 11 16 3 4 4 8 12 8 . 4 1 2 32 12 5 20 32 1 9 31 37 . Terrain Destroyed 2291 | . 8 33 19 . 18 112 69 98 68 7 412 4 22 40 4 11 13 14 30 50 . 10 1 4 46 23 7 38 67 1 122 302 352 286 Melee 23 | . . . . . . . 9 6 . . 3 . 5 . . . . . . . . . . . . . . . . . . . . . Projectile 896 | . . . . . . . . 1 13 7 51 4 14 40 4 11 13 14 30 15 . 10 1 4 46 23 7 38 65 1 122 100 190 72 AOE 1178 | . 8 33 19 . 18 112 60 91 55 . 358 . 3 . . . . . . 35 . . . . . . . . . . . 46 126 214 Terrain Rammed . | . . . . . . . . . . . . . . . . . . . . . . . . . . . . . . . . . . . Walls Destroyed . | . . . . . . . . . . . . . . . . . . . . . . . . . . . . . . . . . . . Machines Disabled . | . . . . . . . . . . . . . . . . . . . . . . . . . . . . . . . . . . . Actions | -11 -10 -10 -9 -9 -7 -6 -6 -6 -6 -6 -6 -5 -5 -5 -5 -4 -4 -4 -4 -4 -4 -4 -4 -3 -3 -3 -2 -2 -2 -1 -1 -1 -1 -1 --------- Run | Jun Mat Min Mat Min Zio Pro Fac Ext Cet Arc Hub Fac Gar Fac Gar Fac Was Fac Gar Fac Upp Upp War Pro Res Qua Res Tes Sec Acc Gar Acc Com Ac0 Total 38233 | 27 304 61 387 183 2320 510 1022 970 319 732 860 203 997 839 767 393 537 501 1126 1151 516 861 2371 609 1258 1175 471 1431 1441 180 1291 4729 7234 457 Wait 7002 | . 16 5 32 . 625 52 30 108 30 24 105 16 185 81 51 11 31 44 31 29 7 15 2168 19 307 59 5 75 164 . 107 807 1754 9 Move 26275 | 19 198 42 263 173 1662 416 768 684 161 631 552 174 659 580 598 338 424 415 907 932 497 817 197 533 763 968 423 1074 999 163 890 3401 4664 290 Hop . | . . . . . . . . . . . . . . . . . . . . . . . . . . . . . . . . . . . Pick Up 390 | . 13 . 21 2 9 1 25 16 14 8 15 3 14 15 5 3 8 7 10 17 . . . 3 19 12 3 15 13 6 16 34 56 7 Fast Attach 341 | 1 . 1 5 . . . 11 10 4 11 9 . 5 13 8 4 7 1 11 6 . . 1 8 10 7 6 32 14 1 19 60 72 4 Attach 247 | . 5 1 3 . . . 21 3 9 4 9 1 3 7 3 2 2 . 9 8 . . . 1 4 4 1 10 16 5 10 35 51 20 Detach 180 | . . . . . . . 6 2 . 2 2 . 2 1 4 1 4 . 8 3 . . . 1 2 2 . 14 17 . 7 42 52 8 Swap 561 | 2 6 1 10 . 10 11 19 21 7 2 28 3 13 21 11 9 11 10 10 32 5 9 1 10 33 15 4 34 41 2 18 53 88 11 Drop 566 | 2 8 1 13 1 9 1 22 18 12 13 17 1 19 18 8 3 25 5 12 17 . . 1 10 23 18 6 44 13 2 17 82 117 8 Fire 2205 | 3 54 10 40 3 5 24 92 81 82 20 112 4 84 88 61 22 24 17 73 99 6 19 3 24 83 83 19 119 163 1 118 195 274 100 Melee 124 | . . . . . . . 16 10 . 17 3 . 8 6 . . . 1 11 5 1 1 . . 12 6 3 6 1 . . . 17 . Ram . | . . . . . . . . . . . . . . . . . . . . . . . . . . . . . . . . . . . Kick . | . . . . . . . . . . . . . . . . . . . . . . . . . . . . . . . . . . . Crush 44 | . 4 . . 4 . 5 12 4 . . 8 1 1 4 . . . . . . . . . . . . . . . . . 1 . . Escape Stasis 270 | . . . . . . . . 12 . . . . 4 . 18 . . . 40 . . . . . . . . 8 . . 89 19 80 . Rewire 28 | . . . . . . . . 1 . . . . . 5 . . 1 1 4 3 . . . . 2 1 1 . . . . . 9 . Trap . | . . . . . . . . . . . . . . . . . . . . . . . . . . . . . . . . . . . Miscellaneous . | . . . . . . . . . . . . . . . . . . . . . . . . . . . . . . . . . . . Route ------- -11/Junkyard -10/Materials (discovered 5 exits: *Mat x3 / [*Min] / [*Sub]) -10/Mines -9/Materials -9/Mines (discovered 2 exits: [*Mat] / [*Zio]) -7/Zion -6/Proximity Caves -6/Factory (discovered 5 exits: *Fac / *Low x2 / *Ext x2) -6/Extension (discovered 2 exits: *Fac / *Cet) -6/Cetus (discovered 2 exits: *Fac / *Arc) -6/Archives (discovered 3 exits: *Fac / *Hub x2) -6/Hub_04(d) (discovered 3 exits: *Fac x3) -5/Factory -5/Garrison (discovered 3 exits: *Fac x3) -5/Factory (discovered 2 exits: *Fac / Gar) -5/Garrison (discovered 3 exits: *Fac x3) -4/Factory -4/Waste -4/Factory -4/Garrison (discovered 3 exits: *Fac x3) -4/Factory (discovered 3 exits: *Res x2 / *Upp) -4/Upper Caves -4/Upper Caves -4/Warlord -3/Proximity Caves -3/Research (discovered 2 exits: *Qua x2) -3/Quarantine -2/Research -2/Testing (discovered 2 exits: *Acc / *Sec) -2/Section 7 -1/Access -1/Garrison (discovered 3 exits: [*Acc x3]) -1/Access (discovered 2 exits: [*Sur] / *Com) -1/Command (discovered 3 exits: [*Sur x2] / [*Ac0]) -1/Access_0 History --------- Turn | Location | Event 14 | -11/Junkyard | Discovered new exit (range 1) 46 | -11/Junkyard | Entered Materials 144 | -10/Materials | Discovered new exit (range 8) 250 | -10/Materials | Discovered new exit (range 10) 315 | -10/Materials | Build established: Mutant 370 | -10/Materials | Lost 4 parts (1p1n1u1w) 404 | -10/Materials | Discovered new exit (range 8) 413 | -10/Materials | Discovered new exit (range 15) 418 | -10/Materials | Discovered new exit (range 15) 538 | -10/Materials | Entered Mines 583 | -10/Mines | Discovered new exit (range 9) 595 | -10/Mines | Assembled infested the area 602 | -10/Mines | Core integrity fell below 50% 613 | -10/Mines | Core integrity fell below 20% 624 | -10/Mines | Entered Materials 624 | -9/Materials | Evolved 2 slots: Propulsion x1, Utility x1 1017 | -9/Materials | Discovered new exit (range 13) 1306 | -9/Materials | Entered Mines 1313 | -9/Mines | Received a Rocket Launcher from a helpful Derelict 1349 | -9/Mines | Discovered new exit (range 11) 1443 | -9/Mines | Found a damaged Exp. Sensor Array with a note attached 1448 | -9/Mines | Found Prototype Device 1481 | -9/Mines | Learned location of Zion (-7) 1589 | -9/Mines | Found a hidden stash of uninstalled traps 1617 | -9/Mines | A Derelict revealed a hidden shortcut to a safe place 1753 | -9/Mines | Entered Zion 1824 | -7/Zion | Received a hallucinogenic algorithm 1947 | -7/Zion | Discovered new exit (range 12) 3775 | -7/Zion | Identified Exp. Sensor Array 3929 | -7/Zion | Visited the Megawrench Repair Shop 3929 | -7/Zion | Megawrench repaired 8 parts 4106 | -7/Zion | Found Relay Coupler [Programmer] 4110 | -7/Zion | Found Relay Coupler [Programmer] 4119 | -7/Zion | Found Relay Coupler [Programmer] 4123 | -7/Zion | Found Relay Coupler [Programmer] 4663 | -7/Zion | Found Relay Coupler [Programmer] 5746 | -7/Zion | Attacked by Zionites 6403 | -7/Zion | Entered Proximity Caves 6604 | -6/Proximity Caves | Spotter reported a threat 6630 | -6/Proximity Caves | Identified exit to Factory 6685 | -6/Proximity Caves | Spotter reported a threat 6718 | -6/Proximity Caves | Spotter reported a threat 6803 | -6/Proximity Caves | Spotter reported a threat 6856 | -6/Proximity Caves | Spotter reported a threat 7282 | -6/Proximity Caves | Entered Factory 7282 | -6/Factory | Evolved 6 slots: Power x1, Utility x5 7632 | -6/Factory | Search patrols dispatched 7768 | -6/Factory | Discovered new exit (range 10) 7982 | -6/Factory | Search patrols dispatched 8132 | -6/Factory | Build established: Hacker-Mutant 8175 | -6/Factory | Lost 3 parts (1n2u) 8332 | -6/Factory | First assault squad dispatched 8440 | -6/Factory | Discovered new exit (range 5) 8620 | -6/Factory | Build established: Scavenger-Mutant 8956 | -6/Factory | Identified exit to Lower Caves 8956 | -6/Factory | Identified exit to Extension 9620 | -6/Factory | Entered Extension 10464 | -6/Extension | Rescued a captive Derelict 10653 | -6/Extension | Rescued a captive Derelict 10740 | -6/Extension | Rescued A7 10972 | -6/Extension | Spotted B-75 Beast 10985 | -6/Extension | Allies destroyed B-75 Beast 11026 | -6/Extension | Spotted B-75 Beast 11045 | -6/Extension | Disrupted transfer network 11047 | -6/Extension | Allies destroyed B-75 Beast 11067 | -6/Extension | System corruption reached 10% 11466 | -6/Extension | Extracted ID and sensor layout for unrecognized location from A7's data core 11473 | -6/Extension | Rescued a captive Derelict 11473 | -6/Extension | Rescued a captive Derelict 11667 | -6/Extension | Discovered new exit (range 10) 11669 | -6/Extension | Discovered new exit (range 6) 11682 | -6/Extension | Identified exit to Cetus 11691 | -6/Extension | Entered Cetus 11691 | -6/Cetus | Accompanied by 5 allies 11730 | -6/Cetus | Spotted Cetus Guard 11730 | -6/Cetus | Spotted Cetus Guard 11739 | -6/Cetus | Spotted Cetus Guard 11742 | -6/Cetus | Destroyed Cetus Guard 11746 | -6/Cetus | Spotted Cetus Guard 11750 | -6/Cetus | Allies destroyed Cetus Guard 11762 | -6/Cetus | Allies destroyed Cetus Guard 11763 | -6/Cetus | Destroyed Cetus Guard 11936 | -6/Cetus | Discovered new exit (range 15) 11967 | -6/Cetus | Spotted Cetus Guard 11967 | -6/Cetus | Spotted Cetus Guard 11971 | -6/Cetus | Spotted Cetus Guard 11985 | -6/Cetus | Destroyed Cetus Guard 11985 | -6/Cetus | Spotted Cetus Guard 12008 | -6/Cetus | Destroyed Cetus Guard 12019 | -6/Cetus | System corruption reached 30% 12034 | -6/Cetus | Destroyed Cetus Guard 12056 | -6/Cetus | Lost 5 parts (1p2u2w) 12061 | -6/Cetus | Destroyed Cetus Guard 12106 | -6/Cetus | Discovered new exit (range 15) 12135 | -6/Cetus | Met Revision 17 12265 | -6/Cetus | Identified exit to Archives 12266 | -6/Cetus | Entered Archives 12398 | -6/Archives | Discovered new exit (range 16) 12491 | -6/Archives | Discovered new exit (range 15) 12684 | -6/Archives | Discovered new exit (range 15) 13133 | -6/Archives | Identified exit to Hub_04(d) 15128 | -6/Archives | Entered Hub_04(d) 15314 | -6/Hub_04(d) | Discovered new exit (range 8) 15395 | -6/Hub_04(d) | Core integrity fell below 50% 15420 | -6/Hub_04(d) | Destroyed 7 combat bots 15754 | -6/Hub_04(d) | Discovered new exit (range 15) 15784 | -6/Hub_04(d) | Garrison activated, responded to threat 16002 | -6/Hub_04(d) | Discovered new exit (range 3) 16017 | -6/Hub_04(d) | Identified exit to Factory 16584 | -6/Hub_04(d) | Network Hub disabled 16597 | -6/Hub_04(d) | Spotted Lightning 16629 | -6/Hub_04(d) | Network Hub disabled 16671 | -6/Hub_04(d) | Spotted Lightning 16671 | -6/Hub_04(d) | Spotted Lightning 16671 | -6/Hub_04(d) | Spotted Lightning 16682 | -6/Hub_04(d) | Found Prototype Processor 16682 | -6/Hub_04(d) | Identified Exp. Targeting Computer 16687 | -6/Hub_04(d) | Entered Factory 16687 | -5/Factory | Evolved 2 slots: Utility x2 16987 | -5/Factory | First assault squad dispatched 17001 | -5/Factory | Identified exit to Garrison 17001 | -5/Factory | Entered Garrison 17026 | -5/Garrison | Triggered checkpoint 17358 | -5/Garrison | Triggered checkpoint 17384 | -5/Garrison | Spotted B-75 Beast 17443 | -5/Garrison | Triggered checkpoint 17543 | -5/Garrison | Destroyed B-75 Beast 17634 | -5/Garrison | Discovered new exit (range 22) 17634 | -5/Garrison | Discovered new exit (range 62) 17634 | -5/Garrison | Discovered new exit (range 68) 17768 | -5/Garrison | Triggered checkpoint 17876 | -5/Garrison | Installed Relay Interface Framework 17913 | -5/Garrison | Learned Factory security intel 18128 | -5/Garrison | Triggered checkpoint 18169 | -5/Garrison | Garrison Relay disabled 18216 | -5/Garrison | Identified exit to Factory 18287 | -5/Garrison | Build established: Bothacker-Mutant 18436 | -5/Garrison | Spotted B-75 Beast 18443 | -5/Garrison | Destroyed B-75 Beast 18549 | -5/Garrison | Found Relay Coupler [Proto] 18553 | -5/Garrison | Found Relay Coupler [Proto] 18556 | -5/Garrison | Found Relay Coupler [Proto] 18561 | -5/Garrison | Found Relay Coupler [Proto] 18654 | -5/Garrison | Triggered checkpoint 18701 | -5/Garrison | Garrison Relay disabled 18745 | -5/Garrison | Entered Factory 19336 | -5/Factory | System corruption reached 10% 19345 | -5/Factory | First assault squad dispatched 19378 | -5/Factory | Sage 6b assimilated hostile X-77 Beamer 19681 | -5/Factory | Found Exp. Targeting Computer 20161 | -5/Factory | Lost 3 parts (3u) 20181 | -5/Factory | Sage 6c assimilated hostile G-50 Soldier 20341 | -5/Factory | Sage 6d assimilated hostile G-50 Soldier 20462 | -5/Factory | Discovered new exit (range 5) 20486 | -5/Factory | Identified exit to Garrison 20495 | -5/Factory | Entered Garrison 20495 | -5/Garrison | Accompanied by 3 allies 20518 | -5/Garrison | Spotted B-90 Cyclops 20520 | -5/Garrison | Spotted B-86 Titan 20550 | -5/Garrison | Triggered checkpoint 20595 | -5/Garrison | Expanded RIF knowledge: Command Fork 20648 | -5/Garrison | Triggered checkpoint 20662 | -5/Garrison | Garrison Relay disabled 20748 | -5/Garrison | Triggered checkpoint 20823 | -5/Garrison | Lost 4 parts (1n2u1w) 20910 | -5/Garrison | System corruption reached 30% 20928 | -5/Garrison | Rescued a captive Derelict 20935 | -5/Garrison | Rescued a captive Derelict 21048 | -5/Garrison | Triggered checkpoint 21135 | -5/Garrison | Discovered new exit (range 10) 21193 | -5/Garrison | Triggered checkpoint 21241 | -5/Garrison | Garrison Relay disabled 21429 | -5/Garrison | Triggered checkpoint 21463 | -5/Garrison | Discovered new exit (range 15) 21711 | -5/Garrison | Discovered new exit (range 12) 21800 | -5/Garrison | Triggered checkpoint 21836 | -5/Garrison | Garrison Relay disabled 21914 | -5/Garrison | Garrison Relay disabled 21970 | -5/Garrison | Identified exit to Factory 21973 | -5/Garrison | Entered Factory 21973 | -4/Factory | Accompanied by 1 ally 21973 | -4/Factory | Evolved 2 slots: Utility x2 22157 | -4/Factory | Found Launcher Loader 22473 | -4/Factory | First assault squad dispatched 22534 | -4/Factory | Sucked down chute 22534 | -4/Factory | Entered Waste 22535 | -4/Waste | Joined by Warlord forces that had cleared the area 22587 | -4/Waste | Found Unknown Protection 22587 | -4/Waste | Identified Adv. Powered Armor 22615 | -4/Waste | 4 allies followed down the chute 22942 | -4/Waste | Found Damper Plating 23050 | -4/Waste | A Compactor rumbled back to life 23050 | -4/Waste | Spotted C-40 Crusher 23052 | -4/Waste | Destroyed C-40 Crusher 23074 | -4/Waste | Found Damper Plating 23170 | -4/Waste | Discovered new exit (range 11) 23265 | -4/Waste | Identified exit to Factory 23270 | -4/Waste | Entered Factory 23270 | -4/Factory | Accompanied by 22 allies 23967 | -4/Factory | Garrison activated, responded to threat 24009 | -4/Factory | Identified exit to Garrison 24024 | -4/Factory | Entered Garrison 24024 | -4/Garrison | Accompanied by 12 allies 24066 | -4/Garrison | Triggered checkpoint 24319 | -4/Garrison | Triggered checkpoint 24322 | -4/Garrison | Triggered checkpoint 24336 | -4/Garrison | Spotted B-86 Titan 24356 | -4/Garrison | Destroyed B-86 Titan 24470 | -4/Garrison | Triggered checkpoint 24530 | -4/Garrison | Discovered new exit (range 14) 24637 | -4/Garrison | Triggered checkpoint 24676 | -4/Garrison | Triggered checkpoint 24868 | -4/Garrison | Discovered new exit (range 11) 24887 | -4/Garrison | Triggered checkpoint 24966 | -4/Garrison | Expanded RIF knowledge: Watcher Feeds 24992 | -4/Garrison | Garrison Relay disabled 25369 | -4/Garrison | Triggered checkpoint 25407 | -4/Garrison | Discovered new exit (range 11) 25414 | -4/Garrison | Spotted Executioner 25465 | -4/Garrison | Spotted Executioner 25476 | -4/Garrison | Allies destroyed Executioner 25488 | -4/Garrison | Allies destroyed Executioner 25514 | -4/Garrison | Found Corrupted Prototype Device 25514 | -4/Garrison | Identified Adv. Kinecellerator 25515 | -4/Garrison | System corruption reached 10% 25553 | -4/Garrison | Rewired Striker 25591 | -4/Garrison | Identified exit to Factory 25831 | -4/Garrison | Entered Factory 25831 | -4/Factory | Accompanied by 4 allies 26035 | -4/Factory | Sage 7c assimilated hostile L-61 Swordsman 26047 | -4/Factory | Spotted B-86 Titan 26056 | -4/Factory | Allies destroyed B-86 Titan 26097 | -4/Factory | Sage 7c assimilated hostile S-27 Virus 26217 | -4/Factory | Found Quantum Capacitor 26319 | -4/Factory | Discovered new exit (range 15) 26370 | -4/Factory | Identified exit to Research 26720 | -4/Factory | Assembled infested ambush trap array 26739 | -4/Factory | Allies destroyed Striker 26831 | -4/Factory | First assault squad dispatched 27102 | -4/Factory | Destroyed 8 combat bots 27244 | -4/Factory | Discovered exit to Research (range 17) 27369 | -4/Factory | Found Unknown Protection 27370 | -4/Factory | Identified Powered Armor 27552 | -4/Factory | Discovered new exit (range 6) 27568 | -4/Factory | Identified exit to Upper Caves 27574 | -4/Factory | Entered Upper Caves 27574 | -4/Upper Caves | Accompanied by 3 allies 27886 | -4/Upper Caves | Encountered a Warlord checkpoint 27928 | -4/Upper Caves | Learned 8 Research zone layouts 28105 | -4/Upper Caves | Discovered new exit (range 6) 28112 | -4/Upper Caves | Identified exit to Upper Caves 28316 | -4/Upper Caves | Entered another Upper Caves area 28316 | -4/Upper Caves | Accompanied by 3 allies 28399 | -4/Upper Caves | Sage 7i assimilated hostile S-27 Virus 28417 | -4/Upper Caves | Learned location of 1 exit from Research 28531 | -4/Upper Caves | Attracted the attention of an 0b10 checkpoint 28533 | -4/Upper Caves | Sage 7i assimilated hostile Y-64 Sentinel 28942 | -4/Upper Caves | Learned location of Testing (-2) 29397 | -4/Upper Caves | Discovered new exit (range 13) 29417 | -4/Upper Caves | Identified exit to Warlord 29549 | -4/Upper Caves | Entered Warlord 29549 | -4/Warlord | Accompanied by 3 allies 29598 | -4/Warlord | System corruption cleaned by Quarantine Array 29650 | -4/Warlord | Discovered new exit (range 14) 29669 | -4/Warlord | Identified exit to Proximity Caves 29752 | -4/Warlord | Opened side exit 30849 | -4/Warlord | Warlord's base attacked by MAIN.C 31199 | -4/Warlord | Warlord forces counterattacked 31524 | -4/Warlord | Warlord base infiltrated, sounded retreat 32008 | -4/Warlord | Spotted Striker 32010 | -4/Warlord | Entered Proximity Caves 32010 | -3/Proximity Caves | Accompanied by 3 allies 32190 | -3/Proximity Caves | Attracted the attention of an 0b10 checkpoint 32230 | -3/Proximity Caves | Found Prototype Device 32828 | -3/Proximity Caves | Discovered exit to Research (range 11) 32864 | -3/Proximity Caves | Entered Research 32864 | -3/Research | Evolved 2 slots: Power x1, Utility x1 32865 | -3/Research | Identified exit to Quarantine 33084 | -3/Research | Found Quantum Capacitor 33616 | -3/Research | Master 8b assimilated hostile H-77 Assassin 33815 | -3/Research | Repaired Adv. Powered Armor 34496 | -3/Research | Entered Quarantine 34496 | -3/Quarantine | Accompanied by 7 allies 34543 | -3/Quarantine | Found Alien Artifact 34775 | -3/Quarantine | Master 8g assimilated hostile W-44 Eye 34775 | -3/Quarantine | Master 8d assimilated hostile G-67 Veteran 34871 | -3/Quarantine | Found Alien Impact Weapon 34902 | -3/Quarantine | Found Alien Artifact 34902 | -3/Quarantine | Identified Phase Armor 34996 | -3/Quarantine | First assault squad dispatched 35085 | -3/Quarantine | Build established: Commander-Mutant 35313 | -3/Quarantine | Discovered new exit (range 13) 35316 | -3/Quarantine | Master 8j assimilated hostile W-44 Eye 35359 | -3/Quarantine | Found Alien Artifact 35359 | -3/Quarantine | Identified Dimensional Node Initializer 35359 | -3/Quarantine | Initialized slip node 35367 | -3/Quarantine | Found Alien Artifact 35367 | -3/Quarantine | Identified Transdimensional Reconstructor 35367 | -3/Quarantine | Warped through subspace to slip node 35380 | -3/Quarantine | Found Alien Artifact 35383 | -3/Quarantine | Found Alien Artifact 35417 | -3/Quarantine | Build established: Bothacker-Mutant 35560 | -3/Quarantine | Cryocooling Duct disabled 35575 | -3/Quarantine | Ambient heat levels rising (+20) 35575 | -3/Quarantine | Non-combat units ordered to evacuate 35824 | -3/Quarantine | Master 8l assimilated hostile G-73 Enforcer 35824 | -3/Quarantine | Master 8j assimilated hostile L-61 Swordsman 35979 | -3/Quarantine | Found Alien Artifact 36053 | -3/Quarantine | Master 8k assimilated hostile G-73 Enforcer 36065 | -3/Quarantine | Identified Core Reset Matrix 36065 | -3/Quarantine | Identified Hpw. Transdimensional Reconstructor (x2) 36065 | -3/Quarantine | Identified Subatomic Replicator 36093 | -3/Quarantine | Build established: Commander-Mutant 36277 | -3/Quarantine | Master 8n assimilated hostile G-73 Enforcer 36299 | -3/Quarantine | Identified exit to Research 36302 | -3/Quarantine | Entered Research 36302 | -2/Research | Accompanied by 8 allies 36302 | -2/Research | Evolved 2 slots: Power x1, Utility x1 36303 | -2/Research | Identified exit to Testing 36338 | -2/Research | Master 8l assimilated hostile Y-72 Warden 36396 | -2/Research | Build established: Bothacker-Mutant 36821 | -2/Research | Master 8n assimilated hostile H-88 Terminator 37052 | -2/Research | First assault squad dispatched 37070 | -2/Research | Entered Testing 37070 | -2/Testing | Accompanied by 3 allies 37275 | -2/Testing | Found Prototype Device 37275 | -2/Testing | Identified 2N-1CE's Frost Array 37831 | -2/Testing | Spotted Striker 37925 | -2/Testing | Found Prototype Energy Gun 37925 | -2/Testing | Identified Hyp. EM Gauss Rifle 38036 | -2/Testing | Found Prototype Energy Cannon 38036 | -2/Testing | Identified Potential Cannon 38100 | -2/Testing | Master 9a assimilated hostile H-88 Terminator 38174 | -2/Testing | Found Prototype Device 38184 | -2/Testing | Identified Exp. Actuator Array 38281 | -2/Testing | Spotted PD-IA2LI7HIZW 38285 | -2/Testing | Allies destroyed PD-IA2LI7HIZW 38493 | -2/Testing | Found Prototype Energy Cannon 38493 | -2/Testing | Identified Cld. Nova Cannon 38541 | -2/Testing | Discovered new exit (range 16) 38591 | -2/Testing | Master 9e assimilated hostile Y-72 Warden 38670 | -2/Testing | System corruption reached 10% 38892 | -2/Testing | Found Prototype Ballistic Cannon 38892 | -2/Testing | Identified Perforator 39028 | -2/Testing | Identified Core Stripper 39053 | -2/Testing | Spotted Fortress 39066 | -2/Testing | Destroyed Fortress 39073 | -2/Testing | Found Prototype Protection 39073 | -2/Testing | Identified Centrium Heavy Armor Plating 39076 | -2/Testing | Found Prototype Device 39077 | -2/Testing | Identified Thermal Barrier 39086 | -2/Testing | Found Prototype Device 39086 | -2/Testing | Identified Exp. Force Field 39090 | -2/Testing | Found Prototype Device 39090 | -2/Testing | Identified Exp. EM Disruption Field 39094 | -2/Testing | Found Prototype Reactor 39094 | -2/Testing | Identified Vortex Chain Reactor 39098 | -2/Testing | Found Vortex Chain Reactor 39272 | -2/Testing | Discovered new exit (range 6) 39279 | -2/Testing | Identified exit to Section 7 39280 | -2/Testing | Entered Section 7 39353 | -2/Section 7 | Build established: Generator-Mutant 39441 | -2/Section 7 | Found Alien Artifact 39610 | -2/Section 7 | Discovered new exit (range 30) 40218 | -2/Section 7 | Found Prototype Device 40218 | -2/Section 7 | Identified Active Sensor Suite 40258 | -2/Section 7 | Spotted S7 Guard 40262 | -2/Section 7 | Destroyed S7 Guard 40266 | -2/Section 7 | Found Prototype Protection 40266 | -2/Section 7 | Identified Hvy. Regenerative Plating 40278 | -2/Section 7 | Found Alien Artifact 40485 | -2/Section 7 | Spotted B-99 Colossus 40548 | -2/Section 7 | Found Alien Artifact 40548 | -2/Section 7 | Identified Core Expander 40548 | -2/Section 7 | Installed Core Expander, added new Weapon slot 40626 | -2/Section 7 | Found Alien Artifact 40629 | -2/Section 7 | Found Alien Artifact 40739 | -2/Section 7 | Identified LRC Energy Well 40739 | -2/Section 7 | Identified Integrated Thermoelectric Network 40739 | -2/Section 7 | Identified LRC Storage 40739 | -2/Section 7 | Identified Integrated Dissipator 40784 | -2/Section 7 | Installed Integrated Thermoelectric Network, gained heat-energy exchange potential 40788 | -2/Section 7 | Used Subatomic Replicator to replicate LRC Storage 40789 | -2/Section 7 | Installed LRC Storage, increased inventory capacity (+2) 40792 | -2/Section 7 | Installed LRC Storage, increased inventory capacity (+2) 40795 | -2/Section 7 | Installed LRC Energy Well, increased energy storage capacity (+250) 41069 | -2/Section 7 | Spotted Executioner 41072 | -2/Section 7 | Spotted Executioner 41097 | -2/Section 7 | Destroyed Executioner 41103 | -2/Section 7 | Destroyed Executioner 41110 | -2/Section 7 | Found Prototype Processor 41110 | -2/Section 7 | Identified Exp. Core Analyzer 41183 | -2/Section 7 | Found Hpw. Transdimensional Reconstructor 41188 | -2/Section 7 | Found Transdimensional Reconstructor 41454 | -2/Section 7 | Entered Access 41454 | -1/Access | Evolved 2 slots: Power x1, Weapon x1 41716 | -1/Access | Identified exit to Garrison 41749 | -1/Access | Entered Garrison 41794 | -1/Garrison | Triggered checkpoint 42067 | -1/Garrison | Destroyed 7 combat bots 42080 | -1/Garrison | Spotted B-99 Colossus 42180 | -1/Garrison | Destroyed B-99 Colossus 42278 | -1/Garrison | Found Relay Coupler [Proto] 42283 | -1/Garrison | Found Relay Coupler [Proto] 42289 | -1/Garrison | Found Relay Coupler [Proto] 42293 | -1/Garrison | Found Relay Coupler [Proto] 42553 | -1/Garrison | Spotted B-99 Colossus 42571 | -1/Garrison | Destroyed B-99 Colossus 42788 | -1/Garrison | Discovered new exit (range 12) 42855 | -1/Garrison | Garrison Relay disabled 42990 | -1/Garrison | Warped through subspace 43043 | -1/Garrison | Discovered new exit (range 5) 43153 | -1/Garrison | Expanded RIF knowledge: Robot Detection 43330 | -1/Garrison | Discovered new exit (range 13) 43527 | -1/Garrison | Garrison Relay disabled 43911 | -1/Garrison | Build established: Botlord-Gunner 44013 | -1/Garrison | Garrison Relay disabled 44091 | -1/Garrison | Entered Access 44093 | -1/Access | Spotted B-99 Colossus 44372 | -1/Access | First assault squad dispatched 44583 | -1/Access | High security lockdown imminent 44663 | -1/Access | High security lockdown engaged 44850 | -1/Access | Destroyed 17 combat bots 44895 | -1/Access | Spotted Striker 44896 | -1/Access | Destroyed Executioner 44898 | -1/Access | Spotted Striker 44899 | -1/Access | Destroyed Striker 44899 | -1/Access | Destroyed Striker 44902 | -1/Access | Spotted Investigator 44932 | -1/Access | Destroyed 11 combat bots 44947 | -1/Access | Scanned by Researcher 44948 | -1/Access | Destroyed Investigator 44983 | -1/Access | Spotted Executioner 44985 | -1/Access | Destroyed Executioner 45033 | -1/Access | Destroyed 8 combat bots 45070 | -1/Access | Destroyed 7 combat bots 45083 | -1/Access | Build established: Botlord-Mutant 45124 | -1/Access | Spotted Executioner 45125 | -1/Access | Destroyed Executioner 45223 | -1/Access | Destroyed 28 combat bots 45253 | -1/Access | Spotted Executioner 45260 | -1/Access | Destroyed Executioner 45295 | -1/Access | Destroyed 11 combat bots 45324 | -1/Access | Spotted Investigator 45332 | -1/Access | Destroyed Investigator 45346 | -1/Access | Spotted Striker 45351 | -1/Access | Destroyed Striker 45356 | -1/Access | Spotted Striker 45357 | -1/Access | Destroyed Striker 45416 | -1/Access | Spotted Striker 45416 | -1/Access | Spotted Striker 45419 | -1/Access | Spotted Executioner 45420 | -1/Access | Destroyed Striker 45420 | -1/Access | Destroyed Striker 45423 | -1/Access | Destroyed Executioner 45462 | -1/Access | Destroyed 7 combat bots 45489 | -1/Access | Spotted Executioner 45489 | -1/Access | Spotted Striker 45489 | -1/Access | Spotted Striker 45492 | -1/Access | Destroyed Executioner 45498 | -1/Access | Destroyed Striker 45501 | -1/Access | Destroyed Striker 45503 | -1/Access | Spotted Executioner 45505 | -1/Access | Spotted Striker 45505 | -1/Access | Destroyed Executioner 45521 | -1/Access | Destroyed Striker 45529 | -1/Access | Sterilization system engaged 45560 | -1/Access | Destroyed 22 combat bots 45571 | -1/Access | Spotted Executioner 45578 | -1/Access | Destroyed Executioner 45584 | -1/Access | Spotted Executioner 45584 | -1/Access | Destroyed Executioner 45590 | -1/Access | Destroyed Executioner 45645 | -1/Access | Destroyed 16 combat bots 45829 | -1/Access | Ambient heat levels rising (+10) 45979 | -1/Access | Ambient heat levels rising (+10) 46099 | -1/Access | Build established: Botlord-Tank 46129 | -1/Access | Ambient heat levels rising (+10) 46279 | -1/Access | Ambient heat levels rising (+10) 46429 | -1/Access | Ambient heat levels rising (+10) 46579 | -1/Access | Ambient heat levels rising (+10) 46729 | -1/Access | Ambient heat levels rising (+10) 46879 | -1/Access | Ambient heat levels rising (+10) 46957 | -1/Access | Found Fusion Bomb Launcher 47029 | -1/Access | Ambient heat levels rising (+10) 47179 | -1/Access | Ambient heat levels rising (+10) 47329 | -1/Access | Ambient heat levels rising (+10) 47479 | -1/Access | Ambient heat levels rising (+10) 47518 | -1/Access | Found Prototype Launcher 47518 | -1/Access | Identified Ragnarok Missile Launcher 47540 | -1/Access | Found Prototype Device 47540 | -1/Access | Identified Adv. EM Disruption Field 47629 | -1/Access | Ambient heat levels rising (+10) 47779 | -1/Access | Ambient heat levels rising (+10) 47929 | -1/Access | Ambient heat levels rising (+10) 48079 | -1/Access | Ambient heat levels rising (+10) 48229 | -1/Access | Ambient heat levels rising (+10) 48379 | -1/Access | Ambient heat levels rising (+10) 48529 | -1/Access | Ambient heat levels rising (+10) 48679 | -1/Access | Ambient heat levels rising (+10) 48829 | -1/Access | Ambient heat levels rising (+10) 48979 | -1/Access | Ambient heat levels rising (+10) 49129 | -1/Access | Ambient heat levels rising (+10) 49279 | -1/Access | Ambient heat levels rising (+10) 49429 | -1/Access | Ambient heat levels rising (+10) 49511 | -1/Access | Build established: Botlord-Gunner 49579 | -1/Access | Ambient heat levels rising (+10) 49729 | -1/Access | Ambient heat levels rising (+10) 49879 | -1/Access | Ambient heat levels rising (+10) 50029 | -1/Access | Ambient heat levels rising (+10) 50179 | -1/Access | Ambient heat levels rising (+10) 50329 | -1/Access | Ambient heat levels rising (+10) 50479 | -1/Access | Ambient heat levels rising (+10) 50525 | -1/Access | Build established: Bothacker-Gunner 50629 | -1/Access | Ambient heat levels rising (+10) 50779 | -1/Access | Ambient heat levels rising (+10) 50929 | -1/Access | Ambient heat levels rising (+10) 51079 | -1/Access | Ambient heat levels rising (+10) 51229 | -1/Access | Ambient heat levels rising (+10) 51379 | -1/Access | Ambient heat levels rising (+10) 51529 | -1/Access | Ambient heat levels rising (+10) 51679 | -1/Access | Ambient heat levels rising (+10) 51722 | -1/Access | Discovered new exit (range 15) 51829 | -1/Access | Ambient heat levels rising (+10) 51979 | -1/Access | Ambient heat levels rising (+10) 52004 | -1/Access | Energy Cycler disabled 52129 | -1/Access | Ambient heat levels rising (+10) 52279 | -1/Access | Ambient heat levels rising (+10) 52429 | -1/Access | Ambient heat levels rising (+10) 52579 | -1/Access | Ambient heat levels rising (+10) 52688 | -1/Access | Discovered new exit (range 9) 52729 | -1/Access | Ambient heat levels rising (+10) 52879 | -1/Access | Ambient heat levels rising (+10) 52927 | -1/Access | Entered Command 53219 | -1/Command | First assault squad dispatched 53282 | -1/Command | High security lockdown imminent 53313 | -1/Command | Destroyed 15 combat bots 53362 | -1/Command | High security lockdown engaged 53457 | -1/Command | Destroyed Executioner 53457 | -1/Command | Spotted Striker 53468 | -1/Command | Destroyed Striker 53496 | -1/Command | Destroyed 15 combat bots 53545 | -1/Command | Spotted Investigator 53549 | -1/Command | Destroyed Investigator 53594 | -1/Command | Destroyed 14 combat bots 53599 | -1/Command | Build established: Bothacker-Mutant 53687 | -1/Command | Spotted Striker 53689 | -1/Command | Spotted Striker 53690 | -1/Command | Spotted Striker 53690 | -1/Command | Destroyed Striker 53690 | -1/Command | Destroyed Striker 53691 | -1/Command | Spotted Investigator 53692 | -1/Command | Destroyed Investigator 53692 | -1/Command | Destroyed Striker 53733 | -1/Command | Destroyed 17 combat bots 53930 | -1/Command | Spotted Striker 53934 | -1/Command | Destroyed Striker 53936 | -1/Command | Destroyed Striker 53936 | -1/Command | Spotted Striker 53938 | -1/Command | Destroyed Executioner 53938 | -1/Command | Destroyed Striker 53952 | -1/Command | Destroyed Striker 53954 | -1/Command | Destroyed Executioner 53954 | -1/Command | Destroyed Striker 53964 | -1/Command | Destroyed Executioner 53966 | -1/Command | Destroyed Executioner 53987 | -1/Command | Destroyed 24 combat bots 54155 | -1/Command | Spotted Striker 54157 | -1/Command | Destroyed Striker 54178 | -1/Command | Spotted Striker 54179 | -1/Command | Spotted Striker 54180 | -1/Command | Destroyed Striker 54182 | -1/Command | Destroyed Executioner 54183 | -1/Command | Spotted Investigator 54184 | -1/Command | Destroyed Striker 54186 | -1/Command | Destroyed Investigator 54192 | -1/Command | Destroyed Striker 54196 | -1/Command | Destroyed Executioner 54222 | -1/Command | Destroyed 34 combat bots 54682 | -1/Command | Build established: Bothacker-Gunner 55164 | -1/Command | Found Prototype Launcher 55164 | -1/Command | Identified Containment Facilitator 55431 | -1/Command | Found Active Sensor Suite 55745 | -1/Command | Spotted B-99 Colossus 56035 | -1/Command | Phase Generator disabled 57511 | -1/Command | Destroyed B-99 Colossus 57581 | -1/Command | Found Prototype Ballistic Gun 57681 | -1/Command | Identified Multirail 57690 | -1/Command | Spotted Combat Programmer 57691 | -1/Command | Spotted Combat Programmer 57702 | -1/Command | Spotted M Guard 57705 | -1/Command | Spotted M Guard 57713 | -1/Command | Destroyed Combat Programmer 57716 | -1/Command | Assimilated M Guard with formatsys_high 57720 | -1/Command | Assimilated M Guard with formatsys_high 57720 | -1/Command | Assimilated Combat Programmer with formatsys_high 58117 | -1/Command | Build established: Generator-Mutant 58503 | -1/Command | Build established: Generator-Gunner 58817 | -1/Command | Spotted B-99 Colossus 58924 | -1/Command | Spotted Alpha 7 58932 | -1/Command | Spotted Striker 58933 | -1/Command | Destroyed Striker 58943 | -1/Command | Spotted Executioner 58946 | -1/Command | Assimilated Executioner with formatsys_high 58946 | -1/Command | Assimilated Alpha 7 with formatsys_high 59187 | -1/Command | Build established: Generator-Mutant 59536 | -1/Command | Spotted Alpha 7 59539 | -1/Command | Spotted Striker 59548 | -1/Command | Destroyed Striker 59554 | -1/Command | Spotted Executioner 59556 | -1/Command | Spotted Executioner 59557 | -1/Command | Spotted B-99 Colossus 59558 | -1/Command | Assimilated Executioner with formatsys_high 59562 | -1/Command | Assimilated Executioner with formatsys_high 59573 | -1/Command | Destroyed Alpha 7 59578 | -1/Command | Destroyed B-99 Colossus 59591 | -1/Command | Found Exp. Core Analyzer 59628 | -1/Command | Found Prototype Device 59628 | -1/Command | Identified Adv. Kinecellerator 59657 | -1/Command | Spotted Executioner 59662 | -1/Command | Destroyed Executioner 59706 | -1/Command | Spotted B-99 Colossus 59711 | -1/Command | Destroyed B-99 Colossus 59738 | -1/Command | Found Multirail 59745 | -1/Command | Found Multirail 59787 | -1/Command | Found Multirail 59855 | -1/Command | Build established: Generator-Gunner 59891 | -1/Command | Crushed by falling debris 59896 | -1/Command | Discovered new exit (range 9) 59933 | -1/Command | Found Exp. Core Analyzer 60020 | -1/Command | Found Adv. Kinecellerator 60024 | -1/Command | Found Exp. Core Analyzer 60353 | -1/Command | Met MAIN.C 60354 | -1/Command | 0b10 Conduit disabled 60364 | -1/Command | Allies destroyed MAIN.C Shell 60364 | -1/Command | MAIN.C activated Command garrisons 60382 | -1/Command | Allies destroyed MAIN.C 60403 | -1/Command | Discovered new exit (range 47) 60403 | -1/Command | Discovered new exit (range 98) 60403 | -1/Command | Extracted map data and part IDs from MAIN.C's data core 60564 | -1/Command | Found Exp. Weapon Cycler 60569 | -1/Command | Found Vortex Chain Reactor 60575 | -1/Command | Found Vortex Chain Reactor 60582 | -1/Command | Found Exp. Armor Integrity Analyzer 60586 | -1/Command | Found Exp. Phase Shifter 60589 | -1/Command | Found Exp. Force Field 60599 | -1/Command | Found Exp. System Purifier 60784 | -1/Command | Destroyed M Guard 60801 | -1/Command | Found Zero-point Reactor 60805 | -1/Command | Found Zero-point Reactor 60809 | -1/Command | Found AEGIS Remote Shield 60815 | -1/Command | Found Hvy. Regenerative Plating 60819 | -1/Command | Found Exp. Targeting Computer 61087 | -1/Command | Build established: Generator-Mutant 64735 | -1/Command | Build established: Generator-Gunner 67527 | -1/Command | Destroyed M Guard 67543 | -1/Command | Destroyed Alpha 7 67546 | -1/Command | Destroyed Combat Programmer 67546 | -1/Command | All MAIN.C guards destroyed 67551 | -1/Command | Destroyed Executioner 67565 | -1/Command | Found Exp. Targeting Computer 67600 | -1/Command | Found AEGIS Remote Shield 67840 | -1/Command | System corruption reached 10% 68244 | -1/Command | Warped through subspace to slip node 68244 | -1/Command | Discovered new exit (range 4) 68245 | -1/Command | Core integrity fell below 50% 68247 | -1/Command | Found Exp. Targeting Computer 68252 | -1/Command | Entered Access_0 68255 | -1/Access_0 | Met Architect 68267 | -1/Access_0 | Architect warped through subspace 68283 | -1/Access_0 | Destroyed A8 68312 | -1/Access_0 | Architect warped through subspace 68337 | -1/Access_0 | Found Exp. Phase Shifter 68359 | -1/Access_0 | Architect warped through subspace 68391 | -1/Access_0 | Architect warped through subspace 68429 | -1/Access_0 | Architect warped through subspace 68462 | -1/Access_0 | Architect warped through subspace 68491 | -1/Access_0 | Architect warped through subspace 68523 | -1/Access_0 | Architect warped through subspace 68561 | -1/Access_0 | Architect warped through subspace 68583 | -1/Access_0 | A6 warped into view 68593 | -1/Access_0 | Destroyed A6 68611 | -1/Access_0 | Architect warped through subspace 68633 | -1/Access_0 | Lost 3 parts (1n2u) 68640 | -1/Access_0 | Architect warped through subspace 68668 | -1/Access_0 | Architect warped through subspace 68688 | -1/Access_0 | Architect warped through subspace 68714 | -1/Access_0 | Architect warped through subspace 68739 | -1/Access_0 | Architect warped through subspace 68764 | -1/Access_0 | Architect warped through subspace 68791 | -1/Access_0 | Architect warped through subspace 68792 | -1/Access_0 | Subspace Access Node disabled 68829 | -1/Access_0 | Architect warped through subspace 68862 | -1/Access_0 | Architect warped through subspace 68895 | -1/Access_0 | Found Integrated Reactor 68896 | -1/Access_0 | Installed Integrated Reactor, increased core energy generation (+10) 68901 | -1/Access_0 | Core integrity fell below 20% 68921 | -1/Access_0 | Architect warped through subspace 68949 | -1/Access_0 | Lost 6 parts (2p3n1w) 68951 | -1/Access_0 | Architect warped through subspace 68988 | -1/Access_0 | Architect warped through subspace 69011 | -1/Access_0 | Lost 3 parts (1p1n1w) 69029 | -1/Access_0 | Destroyed by Architect with Modified Sigix Sheargun Last Messages --------------- 69017_ Quantum Shear penetrates Wall. 69017_ Penetrated by HV Slug. 69017_ Knocked back. 69018_ Critical hit (Destroy). 69018_ Penetrated by HV Slug. 69018_ Enh. Flexi-carbon Leg destroyed. 69018_ Knocked back. 69019_ Enh. Nova Cannon destroyed. 69020_ Penetrated by HV Slug. 69020_ Critical hit (Destroy). 69020_ HV Slug penetrates Wall. 69026_ Penetrated by HV Slug. 69026_ HV Slug penetrates Earth. 69026_ HV Slug penetrates Wall. 69027_ Quantum Shear penetrates Wall. 69028_ Knocked back. 69028_ Penetrated by HV Slug. 69028_ Com. Wheel destroyed. 69028_ HV Slug penetrates Wall. 69028_ HV Slug penetrates Earth. Map ----- +----------------------------------------------------+ | #???# ## ! #??????????????????????? | | ##??### #### !% #??????????????????????? | | #"####" ""## % ###????????????????????? | | # #????????????????????? | | ######## # #????????????????????? | | ???????## #### #"""" #"#####????????????????? | | ###?????####??########## "## #???##???????????? | | #????????????????????# ## ### #???????????? | | #????????????????????## " # #????????????? | | ##???????????????????## " % #?????????????? | | ?????????????????????# ; ""%% #??????????????? | | ?????????????????????# ;; " #???????????????? | | ##" #??????????????# ;; % % ##??????????????? | | "" #????????????#; % #??????????????? | | "" #???????????##;; % %;###??????????????? | | ##" "##????????????#;;; % ;#????????????????? | | ???? ##????????????### ###???????????????? | | ??????????????????##; ; ??????##????????? | | ????????# ???????##!! ;#??????# #????????? | | ????????# ##!!! Yhh ;;##????? ?????????? | | ?###????# ]!%!%= %; ###### #?????????? | | ?# "=*"! ;#### #?????????? | | ?# #??#### " #= ; 0 ; ## ##????????? | | ?# #?????# ### #"?##;#;;;; #?##"""""""##???????? | | ?# #?????????? #??##; % ###" "# #???????? | | ?# #?????????? ### ; %@;;;## #???###?? | | ## ##???????# ? ###; ; ## #####"#?? | | ## #???????#??? ## #### ] ;; #?? | | # ##??????????? ####?? #?##""=%!""# #### #?? | | ##???###?????### #?????#### !!= ## #?# "#? | | "#??## #??????# ##?????##"" # ##?" ##? | | #### ?????## ##???## % ""# #??# "?? | | ## #???## ##?## ##??# ### | | ## ##??# ### ######???# | | ""### #### ## # ! ###??????##### | | "#### "## ## #""" % "#??????????? | | "#?# " "" "# ##??????????? | | "#??# """" "# """ " #???????????? | | "#??# "" "" ## #???????????? | | "#?## #?## " " """" #???????????? | | "### ###" ""###"" "" " ??????????? | | "# ##" "#?## "## ??????????? | | #" ##?# "#? ##?????????? | | "# ###### ##"" # #????????# | | """ ""#??# #?### " ?? ???????# | | #"## "# #### ##???? ## ????????# | | " "" "#?# ##????? #?????????## | | #"""" "" #??# #?????? #????????#"" ?? | | "" """" #??# ####?????? #????????"" ? | | " "# #""" ##??###?????????? ???????? "" | +----------------------------------------------------+ Best States ------------- Heat Dissipation 149 Coolant Potential 100 Energy Generation 142 Energy Capacity 2100 Matter Stores 300 Matter Capacity 800 Sight Range 16 Robot Scan Range 20 Terrain Scan Density 10 Jamming Range 16 Cloak Strength 4 Power Amplification 30 Additional Mass Support 20 Armor Coverage 2400 Resistance: KI 25 Resistance: TH 15 Resistance: EM 90 Core Shielding 40 Utility Shielding 66 Weapon Shielding 66 Point Defense Rating 160 Weapon Cycling 30 Phase Shifting 20 Evasion (%) 60 Targeting Accuracy 48 Melee Accuracy 8 Core Analysis 12 Armor Integrity Analysis 50 Recoil Reduction 3 Particle Charging 25 Kinecelleration 50 Offensive Hacking 24 Defensive Hacking 14 Relay Coupler Types 5 Relay Coupler Value 132 Item Schematics ----------------- Exp. Coolant Injector | -3/Quarantine | Archive Hvy. Dispersion Rifle | -2/Testing | Archive Robot Schematics ------------------ R-06 Scavenger | -3/Quarantine | Archive A-02 Transporter | -3/Quarantine | Archive C-65 Expert | -2/Testing | Archive B-74 Champion | -2/Testing | Archive Fabricated ------------ Nothing Alien Tech Used ----------------- Phase Armor Dimensional Node Initializer Transdimensional Reconstructor Core Stripper Core Expander Integrated Thermoelectric Network Subatomic Replicator LRC Storage LRC Energy Well High-powered Transdimensional Reconstructor Integrated Reactor Achievements -------------- None Challenges ------------ None Game ------ Seed DirtyCouplerSubcomponent Manual? 0 Play Time 13:38:49 Cumulative 1442.6 hours Start 2023.08.03 @ 18:19:29 End 2023.08.05 @ 02:17:46 Sessions 3 Manual Loads 0 Difficulty Rogue Special Mode None Game No. 409 Rogue 409 Adventurer 0 Explorer 0 Win Type - Total 82 Types 13/18/16/3/1/2/25/2/2 Lore% 94 Gallery% 96 Achievement% 88 Wizard Run 0 Options --------- ASCII 0 Keyboard 0 Movement Numpad Keybinds 0 Fullscreen 2 Font 24/Smallcaps Map View 76x50 Tactical HUD 1 Map Filters NONE Filters NONE Steam 1 RUN: 5f3d48d6-24c7-4bb1-a60e-9202ec81e62f